Organisation Name (A),Department (B),Service Cat Label (C ),Purpose of Spend (D),Expenditure CIPFA Sub Group (E),Supplier (F),Supplier Reference (G),Pay Date (H),Transaction Number (I),Net Amount (J),Grant to VCSE? (K),Charity Number (L),Card Transaction (M),Irrecoverable VAT (N)
Pendle Borough Council,Housing & Environmental Health,Premises Related Expense,Bldgs : R & M : Abnormal,2002,ATKINSON CLEANING SERVICES LTD,A0000010,07/12/2023,HEH0337577,320,N,,N,N
Pendle Borough Council,Operational Services,Transport Related Expense,Tprt : Repairs : General,3105,BALMERS GM LIMITED,A0000198,14/12/2023,OPS0338253,41.76,N,,N,N
Pendle Borough Council,Operational Services,Transport Related Expense,Tprt : Repairs : General,3105,BALMERS GM LIMITED,A0000198,14/12/2023,OPS0338253,12.4,N,,N,N
Pendle Borough Council,Operational Services,Supplies and Services,Expenditure : Materials,0002,BARNES JB LIMITED,A0000202,07/12/2023,OPS0337769,73,N,,N,N
Pendle Borough Council,Operational Services,Premises Related Expense,Grounds : R & M : Day to Day : Routine,2101,BARNES JB LIMITED,A0000202,07/12/2023,OPS0337777,12.98,N,,N,N
Pendle Borough Council,Operational Services,Premises Related Expense,Grounds : R & M : Day to Day : Routine,2101,BARNES JB LIMITED,A0000202,07/12/2023,OPS0337776,33.62,N,,N,N
Pendle Borough Council,Operational Services,Premises Related Expense,Grounds : R & M : Day to Day : Routine,2101,BARNES JB LIMITED,A0000202,07/12/2023,OPS0337772,33.92,N,,N,N
Pendle Borough Council,Operational Services,Transport Related Expense,Tprt : Repairs : General,3105,BARNES JB LIMITED,A0000202,07/12/2023,OPS0338077,3.97,N,,N,N
Pendle Borough Council,Operational Services,Transport Related Expense,Tprt : Repairs : General,3105,BARNES JB LIMITED,A0000202,20/12/2023,OPS0338382,143.61,N,,N,N
Pendle Borough Council,Operational Services,Transport Related Expense,Tprt : Repairs : General,3105,BARNES JB LIMITED,A0000202,07/12/2023,OPS0338079,346.64,N,,N,N
Pendle Borough Council,Operational Services,Supplies and Services,Sub-Contractors,4007,BARNES JB LIMITED,A0000202,07/12/2023,OPS0338038,60.85,N,,N,N
Pendle Borough Council,Operational Services,Supplies and Services,Sub-Contractors,4007,BARNES JB LIMITED,A0000202,20/12/2023,OPS0338366,365.05,N,,N,N
Pendle Borough Council,Operational Services,,Stock : Purchases,pj01,BARNES JB LIMITED,A0000202,07/12/2023,OPS0338043,50.85,N,,N,N
Pendle Borough Council,Operational Services,Transport Related Expense,Hire of Plant,3502,BOC GASES LTD,A0000386,07/12/2023,OPS0338080,25.95,N,,N,N
Pendle Borough Council,Operational Services,Premises Related Expense,Bldgs : R & M : Day To Day,2001,BARROWFORD SAFE & LOCK SERV LT,A0000458,14/12/2023,OPS0338213,33.3,N,,N,N
Pendle Borough Council,Operational Services,Supplies and Services,Expenditure : Materials,0002,BARROWFORD SAFE & LOCK & BB LOCKSMITHS,A0000510,07/12/2023,OPS0338076,6.25,N,,N,N
Pendle Borough Council,Operational Services,Supplies and Services,Expenditure : Materials,0002,BARROWFORD SAFE & LOCK & BB LOCKSMITHS,A0000510,14/12/2023,OPS0338244,9.99,N,,N,N
Pendle Borough Council,Operational Services,Premises Related Expense,Bldgs : R & M : Day To Day,2001,BARROWFORD SAFE & LOCK & BB LOCKSMITHS,A0000510,14/12/2023,OPS0338244,13.32,N,,N,N
Pendle Borough Council,Operational Services,Premises Related Expense,Bldgs : R & M : Day To Day,2001,BARROWFORD SAFE & LOCK & BB LOCKSMITHS,A0000510,07/12/2023,OPS0338076,286.88,N,,N,N
Pendle Borough Council,Operational Services,Premises Related Expense,Bldgs : R & M : Day To Day,2001,BARROWFORD SAFE & LOCK & BB LOCKSMITHS,A0000510,07/12/2023,OPS0338065,49.95,N,,N,N
Pendle Borough Council,Operational Services,Premises Related Expense,Bldgs : R & M : Day To Day,2001,BARROWFORD SAFE & LOCK & BB LOCKSMITHS,A0000510,07/12/2023,OPS0338055,3.83,N,,N,N
Pendle Borough Council,Operational Services,Premises Related Expense,Bldgs : R & M : Day To Day,2001,BARROWFORD SAFE & LOCK & BB LOCKSMITHS,A0000510,07/12/2023,OPS0338033,6.66,N,,N,N
Pendle Borough Council,Operational Services,Transport Related Expense,Tprt : Repairs : General,3105,BARROWFORD SAFE & LOCK & BB LOCKSMITHS,A0000510,14/12/2023,OPS0338255,3.33,N,,N,N
Pendle Borough Council,Operational Services,Transport Related Expense,Tprt : Repairs : General,3105,BARROWFORD SAFE & LOCK & BB LOCKSMITHS,A0000510,14/12/2023,OPS0338244,75.41,N,,N,N
Pendle Borough Council,Operational Services,Transport Related Expense,Tprt : Repairs : General,3105,BARROWFORD SAFE & LOCK & BB LOCKSMITHS,A0000510,07/12/2023,OPS0338076,6.25,N,,N,N
Pendle Borough Council,Housing & Environmental Health,Capital Costs,Capital : Payments,CD14,MARTIN COLLINS JOINERY & GLAZING,A0000623,14/12/2023,HEH0338238,541.5,N,,N,N
Pendle Borough Council,Housing & Environmental Health,Transfer Payments,Storage & Homelessness prevention,6104,CAVALIER TAXIS,A0000638,07/12/2023,HEH0338036,302,N,,N,N
Pendle Borough Council,Operational Services,Premises Related Expense,Grounds : R & M : Day to Day : Routine,2101,CAL-COM SYSTEMS LTD,A0000703,20/12/2023,OPS0338381,65,N,,N,N
Pendle Borough Council,Operational Services,Indirect Employee Expenses,Training,1211,CRAVEN COLLEGE,A0000735,14/12/2023,OPS0338248,1740,N,,N,N
Pendle Borough Council,Property Services,Premises Related Expense,Bldgs : R & M : Day To Day,2001,J DRIVER LTD,A0000884,20/12/2023,EST0338408,158.09,N,,N,N
Pendle Borough Council,Property Services,Premises Related Expense,Bldgs : R & M : Day To Day,2001,J DRIVER LTD,A0000884,20/12/2023,EST0338408,215.29,N,,N,N
Pendle Borough Council,Property Services,Premises Related Expense,Bldgs : R & M : Day To Day,2001,J DRIVER LTD,A0000884,20/12/2023,EST0338408,444,N,,N,N
Pendle Borough Council,Property Services,Premises Related Expense,Bldgs : R & M : Day To Day,2001,J DRIVER LTD,A0000884,20/12/2023,EST0338408,135.9,N,,N,N
Pendle Borough Council,Property Services,Premises Related Expense,Bldgs : R & M : Day To Day,2001,J DRIVER LTD,A0000884,20/12/2023,EST0338408,371.94,N,,N,N
Pendle Borough Council,Property Services,Premises Related Expense,Bldgs : R & M : Day To Day,2001,J DRIVER LTD,A0000884,20/12/2023,EST0338408,364,N,,N,N
Pendle Borough Council,Property Services,Premises Related Expense,Bldgs : R & M : Day To Day,2001,J DRIVER LTD,A0000884,20/12/2023,EST0338408,238,N,,N,N
Pendle Borough Council,Property Services,Capital Costs,Capital: Construction: Conversion/Refu,CD57,J DRIVER LTD,A0000884,07/12/2023,EST0338132,2500,N,,N,N
Pendle Borough Council,Operational Services,Premises Related Expense,Grounds : R & M : Day to Day : Routine,2101,ENGINEERING & FOUNDRY SUPPLIES,A0001002,20/12/2023,OPS0338374,19.25,N,,N,N
Pendle Borough Council,Operational Services,Supplies and Services,Protective Clothing,4201,ENGINEERING & FOUNDRY SUPPLIES,A0001002,20/12/2023,OPS0338373,14.25,N,,N,N
Pendle Borough Council,Operational Services,,Stock : Purchases,PJ01,ENGINEERING & FOUNDRY SUPPLIES,A0001002,07/12/2023,OPS0338040,126.72,N,,N,N
Pendle Borough Council,Operational Services,,Stock : Purchases,PJ01,ENGINEERING & FOUNDRY SUPPLIES,A0001002,07/12/2023,OPS0338058,126.72,N,,N,N
Pendle Borough Council,Operational Services,,Stock : Purchases,PJ01,ENGINEERING & FOUNDRY SUPPLIES,A0001002,20/12/2023,OPS0338365,332.8,N,,N,N
Pendle Borough Council,Operational Services,Transport Related Expense,Tprt : Repairs : General,3105,FREIGHT TRANSPORT ASSOCIATION,A0001124,14/12/2023,OPS0338210,44,N,,N,N
Pendle Borough Council,Operational Services,Premises Related Expense,Grounds : R & M : Day to Day : Routine,2101,JEWSON LIMITED,A0001323,07/12/2023,OPS4006767,-242.8,N,,N,N
Pendle Borough Council,Operational Services,Premises Related Expense,Grounds : R & M : Day to Day : Routine,2101,JEWSON LIMITED,A0001323,07/12/2023,OPS0337933,30.16,N,,N,N
Pendle Borough Council,Operational Services,Premises Related Expense,Grounds : R & M : Day to Day : Routine,2101,JEWSON LIMITED,A0001323,07/12/2023,OPS0337778,88.2,N,,N,N
Pendle Borough Council,Operational Services,Premises Related Expense,Grounds : R & M : Day to Day : Routine,2101,JEWSON LIMITED,A0001323,07/12/2023,OPS0337779,163.8,N,,N,N
Pendle Borough Council,Operational Services,Premises Related Expense,Grounds : R & M : Day to Day : Routine,2101,JEWSON LIMITED,A0001323,07/12/2023,OPS0337780,464.35,N,,N,N
Pendle Borough Council,Operational Services,Supplies and Services,Other Expenses,4705,JEWSON LIMITED,A0001323,07/12/2023,OPS0337929,121.92,N,,N,N
Pendle Borough Council,Operational Services,Supplies and Services,Other Expenses,4705,JEWSON LIMITED,A0001323,07/12/2023,OPS0338057,121.92,N,,N,N
Pendle Borough Council,Operational Services,Supplies and Services,Other Expenses,4705,JEWSON LIMITED,A0001323,20/12/2023,OPS0338367,182.88,N,,N,N
Pendle Borough Council,Housing & Environmental Health,Supplies and Services,EFM Materials,4004,KILLGERM CHEMICALS LTD,A0001624,07/12/2023,HEH0337573,137.34,N,,N,N
Pendle Borough Council,Housing & Environmental Health,Supplies and Services,EFM Materials,4004,KILLGERM CHEMICALS LTD,A0001624,07/12/2023,HEH0337576,915.42,N,,N,N
Pendle Borough Council,Housing & Environmental Health,Supplies and Services,Other Expenses,4705,KILLGERM CHEMICALS LTD,A0001624,07/12/2023,HEH0337574,380,N,,N,N
Pendle Borough Council,Operational Services,Premises Related Expense,Grounds : R & M : Day to Day : Routine,2101,LANLEE SUPPLIES LIMITED,A0001672,07/12/2023,OPS0337770,397.67,N,,N,N
Pendle Borough Council,Operational Services,Premises Related Expense,Grounds : R & M : Day to Day : Routine,2101,LANLEE SUPPLIES LIMITED,A0001672,07/12/2023,OPS4006768,-81.9,N,,N,N
Pendle Borough Council,Operational Services,Premises Related Expense,Grounds : R & M : Day to Day : Routine,2101,LANLEE SUPPLIES LIMITED,A0001672,07/12/2023,OPS0337757,81.9,N,,N,N
Pendle Borough Council,Operational Services,Premises Related Expense,Grounds : R & M : Day to Day : Routine,2101,LANLEE SUPPLIES LIMITED,A0001672,20/12/2023,OPS0338352,121.43,N,,N,N
Pendle Borough Council,Operational Services,Premises Related Expense,Grounds : R & M : Day to Day : Routine,2101,LANLEE SUPPLIES LIMITED,A0001672,07/12/2023,OPS0337783,147.15,N,,N,N
Pendle Borough Council,Operational Services,Transport Related Expense,Tprt : Repairs : General,3105,DICK LEIGH,A0001675,14/12/2023,OPS0338254,25.25,N,,N,N
Pendle Borough Council,Operational Services,Capital Costs,Capital : Purchase,cd01,DICK LEIGH,A0001675,20/12/2023,OPS0338348,387.65,N,,N,N
Pendle Borough Council,Operational Services,Premises Related Expense,Trade Refuse Charges,2602,LANCASHIRE COUNTY COUNCIL,A0001690,07/12/2023,OPS0338056,106959.26,N,,N,N
Pendle Borough Council,Legal & Democratic Services,Supplies and Services,Search Fees,4404,LANCASHIRE COUNTY COUNCIL,A0001690,14/12/2023,LAD0338242,261.36,N,,N,N
Pendle Borough Council,Housing & Environmental Health,Supplies and Services,Search Fees,4404,LANCASHIRE COUNTY COUNCIL,A0001690,07/12/2023,HEH0338084,326.7,N,,N,N
Pendle Borough Council,Economic Growth,Capital Costs,Capital : Payments,CD14,LANCASHIRE COUNTY COUNCIL,A0001690,07/12/2023,ECO0338161,750,N,,N,N
Pendle Borough Council,Housing & Environmental Health,Capital Costs,Ren Grant : 1996 Act,CH22,LANCASHIRE COUNTY COUNCIL,A0001690,14/12/2023,HEH0338239,3058.45,N,,N,N
Pendle Borough Council,Operational Services,Premises Related Expense,Grounds : R & M : Day to Day : Routine,2101,JOHN MACADAM & SON (RESCUE) LTD,A0001846,14/12/2023,OPS0338208,120,N,,N,N
Pendle Borough Council,Property Services,Premises Related Expense,Water & Sewerage,2501,WATER PLUS LIMITED,A0001986,07/12/2023,EST0338122,132.85,N,,N,N
Pendle Borough Council,Property Services,Premises Related Expense,Water & Sewerage,2501,WATER PLUS LIMITED,A0001986,07/12/2023,EST0338117,37.31,N,,N,N
Pendle Borough Council,Property Services,Premises Related Expense,Water & Sewerage,2501,WATER PLUS LIMITED,A0001986,14/12/2023,EST0338298,43.92,N,,N,N
Pendle Borough Council,Property Services,Premises Related Expense,Water & Sewerage,2501,WATER PLUS LIMITED,A0001986,07/12/2023,EST0338116,104.63,N,,N,N
Pendle Borough Council,Property Services,Premises Related Expense,Water & Sewerage,2501,WATER PLUS LIMITED,A0001986,07/12/2023,EST0338118,14.63,N,,N,N
Pendle Borough Council,Property Services,Premises Related Expense,Water & Sewerage,2501,WATER PLUS LIMITED,A0001986,07/12/2023,EST0338119,1.36,N,,N,N
Pendle Borough Council,Property Services,Premises Related Expense,Water & Sewerage,2501,WATER PLUS LIMITED,A0001986,07/12/2023,EST0338120,15.02,N,,N,N
Pendle Borough Council,Property Services,Premises Related Expense,Water & Sewerage,2501,WATER PLUS LIMITED,A0001986,14/12/2023,EST0338283,382.02,N,,N,N
Pendle Borough Council,Property Services,Premises Related Expense,Water & Sewerage,2501,WATER PLUS LIMITED,A0001986,14/12/2023,EST0338282,96.44,N,,N,N
Pendle Borough Council,Property Services,Premises Related Expense,Water & Sewerage,2501,WATER PLUS LIMITED,A0001986,14/12/2023,EST0338281,199.89,N,,N,N
Pendle Borough Council,Property Services,Capital Costs,Capital : Payments,CD14,NORTH VALLEY FORGE,A0002019,14/12/2023,EST0338295,3357.5,N,,N,N
Pendle Borough Council,Operational Services,Premises Related Expense,Bldgs : R & M : Day To Day,2001,OPTION HYGIENE LIMITED,A0002063,07/12/2023,OPS0338064,294,N,,N,N
Pendle Borough Council,Operational Services,Premises Related Expense,Bldgs : R & M : Day To Day,2001,OPTION HYGIENE LIMITED,A0002063,07/12/2023,OPS0338063,73.5,N,,N,N
Pendle Borough Council,Housing & Environmental Health,Supplies and Services,EFM : Other Equipment,4003,OPTION HYGIENE LIMITED,A0002063,07/12/2023,HEH0337572,1.95,N,,N,N
Pendle Borough Council,Operational Services,Supplies and Services,Other Expenses,4705,OPTION HYGIENE LIMITED,A0002063,20/12/2023,OPS0338371,107.5,N,,N,N
Pendle Borough Council,Legal & Democratic Services,Supplies and Services,Postages,4501,ROYAL MAIL GROUP LIMITED,A0002281,20/12/2023,LAD0338442,0.15,N,,N,N
Pendle Borough Council,Housing & Environmental Health,Supplies and Services,Postages,4501,ROYAL MAIL GROUP LIMITED,A0002281,14/12/2023,HEH0338240,4.89,N,,N,N
Pendle Borough Council,Housing & Environmental Health,Supplies and Services,Postages,4501,ROYAL MAIL GROUP LIMITED,A0002281,07/12/2023,HEH0338086,87.16,N,,N,N
Pendle Borough Council,Housing & Environmental Health,Supplies and Services,Postages,4501,ROYAL MAIL GROUP LIMITED,A0002281,14/12/2023,HEH0338240,111.15,N,,N,N
Pendle Borough Council,Housing & Environmental Health,Supplies and Services,Postages,4501,ROYAL MAIL GROUP LIMITED,A0002281,07/12/2023,HEH0338083,134.44,N,,N,N
Pendle Borough Council,Legal & Democratic Services,Supplies and Services,Postages,4501,ROYAL MAIL GROUP LIMITED,A0002281,20/12/2023,LAD0338442,416.54,N,,N,N
Pendle Borough Council,Housing & Environmental Health,Supplies and Services,Postages,4501,ROYAL MAIL GROUP LIMITED,A0002281,14/12/2023,HEH0338240,6.87,N,,N,N
Pendle Borough Council,Housing & Environmental Health,Supplies and Services,Postages,4501,ROYAL MAIL GROUP LIMITED,A0002281,07/12/2023,HEH0338086,10.66,N,,N,N
Pendle Borough Council,Housing & Environmental Health,Supplies and Services,Postages,4501,ROYAL MAIL GROUP LIMITED,A0002281,07/12/2023,HEH0338083,14.41,N,,N,N
Pendle Borough Council,Housing & Environmental Health,Supplies and Services,Postages,4501,ROYAL MAIL GROUP LIMITED,A0002281,07/12/2023,HEH0338083,3.16,N,,N,N
Pendle Borough Council,Housing & Environmental Health,Supplies and Services,Postages,4501,ROYAL MAIL GROUP LIMITED,A0002281,07/12/2023,HEH0338086,15.33,N,,N,N
Pendle Borough Council,Housing & Environmental Health,Supplies and Services,Postages,4501,ROYAL MAIL GROUP LIMITED,A0002281,14/12/2023,HEH0338240,15.62,N,,N,N
Pendle Borough Council,Housing & Environmental Health,Supplies and Services,Postages,4501,ROYAL MAIL GROUP LIMITED,A0002281,07/12/2023,HEH0338086,1.95,N,,N,N
Pendle Borough Council,Housing & Environmental Health,Supplies and Services,Postages,4501,ROYAL MAIL GROUP LIMITED,A0002281,14/12/2023,HEH0338240,3.25,N,,N,N
Pendle Borough Council,Housing & Environmental Health,Supplies and Services,Postages,4501,ROYAL MAIL GROUP LIMITED,A0002281,07/12/2023,HEH0338083,3.85,N,,N,N
Pendle Borough Council,Housing & Environmental Health,Supplies and Services,Postages,4501,ROYAL MAIL GROUP LIMITED,A0002281,14/12/2023,HEH0338240,3.07,N,,N,N
Pendle Borough Council,Housing & Environmental Health,Supplies and Services,Postages,4501,ROYAL MAIL GROUP LIMITED,A0002281,07/12/2023,HEH0338083,6.64,N,,N,N
Pendle Borough Council,Housing & Environmental Health,Supplies and Services,Postages,4501,ROYAL MAIL GROUP LIMITED,A0002281,07/12/2023,HEH0338086,23.55,N,,N,N
Pendle Borough Council,Housing & Environmental Health,Supplies and Services,Postages,4501,ROYAL MAIL GROUP LIMITED,A0002281,14/12/2023,HEH0338240,28.6,N,,N,N
Pendle Borough Council,Housing & Environmental Health,Supplies and Services,Postages,4501,ROYAL MAIL GROUP LIMITED,A0002281,07/12/2023,HEH0338083,31.55,N,,N,N
Pendle Borough Council,Housing & Environmental Health,Supplies and Services,Postages,4501,ROYAL MAIL GROUP LIMITED,A0002281,07/12/2023,HEH0338086,153.14,N,,N,N
Pendle Borough Council,Housing & Environmental Health,Supplies and Services,Postages,4501,ROYAL MAIL GROUP LIMITED,A0002281,14/12/2023,HEH0338240,155.99,N,,N,N
Pendle Borough Council,Housing & Environmental Health,Supplies and Services,Postages,4501,ROYAL MAIL GROUP LIMITED,A0002281,07/12/2023,HEH0338083,97.24,N,,N,N
Pendle Borough Council,Housing & Environmental Health,Supplies and Services,Postages,4501,ROYAL MAIL GROUP LIMITED,A0002281,07/12/2023,HEH0338086,98.06,N,,N,N
Pendle Borough Council,Housing & Environmental Health,Supplies and Services,Postages,4501,ROYAL MAIL GROUP LIMITED,A0002281,14/12/2023,HEH0338240,359.45,N,,N,N
Pendle Borough Council,Housing & Environmental Health,Supplies and Services,Postages,4501,ROYAL MAIL GROUP LIMITED,A0002281,07/12/2023,HEH0338083,9.87,N,,N,N
Pendle Borough Council,Housing & Environmental Health,Supplies and Services,Postages,4501,ROYAL MAIL GROUP LIMITED,A0002281,07/12/2023,HEH0338086,16.15,N,,N,N
Pendle Borough Council,Housing & Environmental Health,Supplies and Services,Postages,4501,ROYAL MAIL GROUP LIMITED,A0002281,14/12/2023,HEH0338240,5.34,N,,N,N
Pendle Borough Council,Housing & Environmental Health,Supplies and Services,Postages,4501,ROYAL MAIL GROUP LIMITED,A0002281,07/12/2023,HEH0338086,8.01,N,,N,N
Pendle Borough Council,Housing & Environmental Health,Supplies and Services,Postages,4501,ROYAL MAIL GROUP LIMITED,A0002281,07/12/2023,HEH0338083,18.69,N,,N,N
Pendle Borough Council,Housing & Environmental Health,Supplies and Services,Postages,4501,ROYAL MAIL GROUP LIMITED,A0002281,14/12/2023,HEH0338240,185.28,N,,N,N
Pendle Borough Council,Housing & Environmental Health,Supplies and Services,Postages,4501,ROYAL MAIL GROUP LIMITED,A0002281,07/12/2023,HEH0338086,688.31,N,,N,N
Pendle Borough Council,Housing & Environmental Health,Supplies and Services,Postages,4501,ROYAL MAIL GROUP LIMITED,A0002281,07/12/2023,HEH0338083,906.83,N,,N,N
Pendle Borough Council,Housing & Environmental Health,Supplies and Services,Postages,4501,ROYAL MAIL GROUP LIMITED,A0002281,07/12/2023,HEH0338083,33.66,N,,N,N
Pendle Borough Council,Housing & Environmental Health,Supplies and Services,Postages,4501,ROYAL MAIL GROUP LIMITED,A0002281,14/12/2023,HEH0338240,56.55,N,,N,N
Pendle Borough Council,Housing & Environmental Health,Supplies and Services,Postages,4501,ROYAL MAIL GROUP LIMITED,A0002281,07/12/2023,HEH0338086,63.46,N,,N,N
Pendle Borough Council,Operational Services,Supplies and Services,EFM : Other Equipment,4003,SPALDINGS (UK) LTD,A0002537,07/12/2023,OPS0337775,57,N,,N,N
Pendle Borough Council,Operational Services,Supplies and Services,EFM : Other Equipment,4003,SPALDINGS (UK) LTD,A0002537,07/12/2023,OPS0337781,83.64,N,,N,N
Pendle Borough Council,Operational Services,Supplies and Services,EFM : Other Equipment,4003,SPALDINGS (UK) LTD,A0002537,14/12/2023,OPS0338250,167.5,N,,N,N
Pendle Borough Council,"Planning, Building Control & Regulatory Services",Supplies and Services,EFM : Other Equipment,4003,TRISTAR PRINTERS LTD,A0002731,20/12/2023,PBC0338262,90,N,,N,N
Pendle Borough Council,"Planning, Building Control & Regulatory Services",Supplies and Services,EFM : Other Equipment,4003,TRISTAR PRINTERS LTD,A0002731,20/12/2023,PBC0338261,329.25,N,,N,N
Pendle Borough Council,"Planning, Building Control & Regulatory Services",Supplies and Services,EFM : Other Equipment,4003,TRISTAR PRINTERS LTD,A0002731,20/12/2023,PBC0338261,65.75,N,,N,N
Pendle Borough Council,Operational Services,Supplies and Services,Sub-Contractors,4007,TRISTAR PRINTERS LTD,A0002731,14/12/2023,OPS0338224,287,N,,N,N
Pendle Borough Council,Policy & Commissioning,Supplies and Services,Other Expenses,4705,TRISTAR PRINTERS LTD,A0002731,07/12/2023,POL0338048,153,N,,N,N
Pendle Borough Council,Operational Services,Agency Staff,Emp : Agency Wages,1004,DHRB LIMITED T/A DRIVER HIRE (45680),A0003556,20/12/2023,OPS0338359,72.27,N,,N,N
Pendle Borough Council,Operational Services,Agency Staff,Emp : Agency Wages,1004,DHRB LIMITED T/A DRIVER HIRE (45680),A0003556,14/12/2023,OPS0338220,231.24,N,,N,N
Pendle Borough Council,Operational Services,Agency Staff,Emp : Agency Wages,1004,DHRB LIMITED T/A DRIVER HIRE (45680),A0003556,14/12/2023,OPS0338218,293.87,N,,N,N
Pendle Borough Council,Operational Services,Agency Staff,Emp : Agency Wages,1004,DHRB LIMITED T/A DRIVER HIRE (45680),A0003556,20/12/2023,OPS0338360,390.21,N,,N,N
Pendle Borough Council,Operational Services,Agency Staff,Emp : Agency Wages,1004,DHRB LIMITED T/A DRIVER HIRE (45680),A0003556,14/12/2023,OPS0338219,861.12,N,,N,N
Pendle Borough Council,Operational Services,Agency Staff,Emp : Agency Wages,1004,DHRB LIMITED T/A DRIVER HIRE (45680),A0003556,14/12/2023,OPS0338219,184.28,N,,N,N
Pendle Borough Council,Operational Services,Agency Staff,Emp : Agency Wages,1004,DHRB LIMITED T/A DRIVER HIRE (45680),A0003556,14/12/2023,OPS0338220,462.48,N,,N,N
Pendle Borough Council,Operational Services,Agency Staff,Emp : Agency Wages,1004,DHRB LIMITED T/A DRIVER HIRE (45680),A0003556,14/12/2023,OPS0338218,780.42,N,,N,N
Pendle Borough Council,Operational Services,Agency Staff,Emp : Agency Wages,1004,DHRB LIMITED T/A DRIVER HIRE (45680),A0003556,20/12/2023,OPS0338359,953.85,N,,N,N
Pendle Borough Council,Operational Services,Agency Staff,Emp : Agency Wages,1004,DHRB LIMITED T/A DRIVER HIRE (45680),A0003556,20/12/2023,OPS0338360,1177.88,N,,N,N
Pendle Borough Council,Operational Services,Agency Staff,Emp : Agency Wages,1004,DHRB LIMITED T/A DRIVER HIRE (45680),A0003556,20/12/2023,OPS0338359,72.26,N,,N,N
Pendle Borough Council,Operational Services,Agency Staff,Emp : Agency Wages,1004,DHRB LIMITED T/A DRIVER HIRE (45680),A0003556,14/12/2023,OPS0338220,221.34,N,,N,N
Pendle Borough Council,Operational Services,Agency Staff,Emp : Agency Wages,1004,DHRB LIMITED T/A DRIVER HIRE (45680),A0003556,20/12/2023,OPS0338360,469.7,N,,N,N
Pendle Borough Council,Operational Services,Premises Related Expense,Grounds : R & M : Day to Day : Routine,2101,ENVIRONMENT AGENCY,A0003560,20/12/2023,OPS0338368,400,N,,N,N
Pendle Borough Council,Legal & Democratic Services,Indirect Employee Expenses,Staff Refreshments,1261,PHILIP SANDERSON,A0006611,07/12/2023,LAD0338051,22.22,N,,N,N
Pendle Borough Council,Legal & Democratic Services,Supplies and Services,Hospitality,4611,PHILIP SANDERSON,A0006611,07/12/2023,LAD0338051,22.22,N,,N,N
Pendle Borough Council,Human Resources,Supplies and Services,Seminars etc All Costs,4601,NORTH WESTERN EMPLOYERS ORGANISATION,A0010430,07/12/2023,PER0338000,295,N,,N,N
Pendle Borough Council,Human Resources,Supplies and Services,Seminars etc All Costs,4601,NORTH WESTERN EMPLOYERS ORGANISATION,A0010430,07/12/2023,PER0337997,590,N,,N,N
Pendle Borough Council,Policy & Commissioning,Supplies and Services,Other Expenses,4705,PENDLE LEISURE LIMITED,A0012961,14/12/2023,POL0338230,30000,N,XR43029,N,N
Pendle Borough Council,Policy & Commissioning,Supplies and Services,Other Expenses,4705,PENDLE LEISURE LIMITED,A0012961,20/12/2023,POL0338440,62872,N,XR43029,N,N
Pendle Borough Council,Finance,Agency Costs,PLT Management Fee,5305,PENDLE LEISURE LIMITED,A0012961,20/12/2023,FIN0338470,436000,N,XR43029,N,N
Pendle Borough Council,Property Services,Capital Costs,Capital: Construction: Conversion/Refu,CD57,E A FOULDS LIMITED,A0013455,20/12/2023,EST0338418,8797.7,N,,N,N
Pendle Borough Council,Economic Growth,Supplies and Services,Other Expenses,4705,EARBY & DISTRICT LOCAL HISTORY SOCIETY,A0014776,14/12/2023,ECO0338270,649,N,,N,N
Pendle Borough Council,Operational Services,Supplies and Services,Sub-Contractors,4007,ORCHARD RECYCLING SERVICE,A0015803,14/12/2023,OPS0338217,2826,N,,N,N
Pendle Borough Council,Operational Services,Supplies and Services,Sub-Contractors,4007,ORCHARD RECYCLING SERVICE,A0015803,20/12/2023,OPS0338369,3168,N,,N,N
Pendle Borough Council,Operational Services,Supplies and Services,Sub-Contractors,4007,ORCHARD RECYCLING SERVICE,A0015803,07/12/2023,OPS0338042,3240,N,,N,N
Pendle Borough Council,Housing & Environmental Health,Capital Costs,Ren Grant : 1996 Act,CH22,STANNAH LIFT SERVICES LTD,A0021089,20/12/2023,HEH0338314,3695,N,,N,N
Pendle Borough Council,Housing & Environmental Health,Capital Costs,Ren Grant : 1996 Act,CH22,STANNAH LIFT SERVICES LTD,A0021089,20/12/2023,HEH0338311,3806,N,,N,N
Pendle Borough Council,Housing & Environmental Health,Capital Costs,Ren Grant : 1996 Act,CH22,STANNAH LIFT SERVICES LTD,A0021089,20/12/2023,HEH0338313,4061,N,,N,N
Pendle Borough Council,Housing & Environmental Health,Capital Costs,Ren Grant : 1996 Act,CH22,STANNAH LIFT SERVICES LTD,A0021089,20/12/2023,HEH0338312,4248,N,,N,N
Pendle Borough Council,Housing & Environmental Health,Capital Costs,Ren Grant : 1996 Act,CH22,STANNAH LIFT SERVICES LTD,A0021089,20/12/2023,HEH0338315,7008,N,,N,N
Pendle Borough Council,Operational Services,Supplies and Services,Sub-Contractors,4007,ASPEN VALLEY KENNELS & CATTERY,A0022106,20/12/2023,OPS0338363,758,N,,N,N
Pendle Borough Council,Operational Services,Supplies and Services,Other Expenses,4705,ASPEN VALLEY KENNELS & CATTERY,A0022106,20/12/2023,OPS0338363,1020.6,N,,N,N
Pendle Borough Council,Economic Growth,Capital Costs,Capital : Payments,CD14,DAVID GOODGER & ASSOCIATES LT,A0024824,07/12/2023,ECO0338159,500,N,,N,N
Pendle Borough Council,Housing & Environmental Health,Supplies and Services,Other Expenses,4705,GRADKO INTERNATIONAL LTD,A0025806,07/12/2023,HEH0338085,211.25,N,,N,N
Pendle Borough Council,Property Services,Premises Related Expense,Electricity,2203,BRITISH GAS BUSINESS,A0040331,07/12/2023,EST0338124,61.56,N,,N,N
Pendle Borough Council,Property Services,Premises Related Expense,Electricity,2203,BRITISH GAS BUSINESS,A0040331,07/12/2023,EST0338125,63.61,N,,N,N
Pendle Borough Council,Property Services,Premises Related Expense,Electricity,2203,BRITISH GAS BUSINESS,A0040331,07/12/2023,EST0338123,65.73,N,,N,N
Pendle Borough Council,Property Services,Premises Related Expense,Electricity,2203,BRITISH GAS BUSINESS,A0040331,07/12/2023,EST0338126,65.73,N,,N,N
Pendle Borough Council,Housing & Environmental Health,Supplies and Services,Mobile Phones,4508,VODAFONE LTD,A0040344,07/12/2023,HEH0338094,269,N,,N,N
Pendle Borough Council,Finance,Supplies and Services,Mobile Phones,4508,VODAFONE LTD,A0040344,07/12/2023,FIN4006774,-0.33,N,,N,N
Pendle Borough Council,Finance,Supplies and Services,Mobile Phones,4508,VODAFONE LTD,A0040344,07/12/2023,FIN0337210,2.08,N,,N,N
Pendle Borough Council,Housing & Environmental Health,Supplies and Services,Mobile Phones,4508,VODAFONE LTD,A0040344,07/12/2023,HEH0338095,260,N,,N,N
Pendle Borough Council,Housing & Environmental Health,Supplies and Services,Mobile Phones,4508,VODAFONE LTD,A0040344,20/12/2023,HEH0338437,269,N,,N,N
Pendle Borough Council,Housing & Environmental Health,Supplies and Services,Mobile Phones,4508,VODAFONE LTD,A0040344,20/12/2023,HEH0338344,269,N,,N,N
Pendle Borough Council,Housing & Environmental Health,Supplies and Services,Mobile Phones,4508,VODAFONE LTD,A0040344,20/12/2023,HEH0338344,269,N,,N,N
Pendle Borough Council,Housing & Environmental Health,Supplies and Services,Mobile Phones,4508,VODAFONE LTD,A0040344,07/12/2023,HEH4006773,-520,N,,N,N
Pendle Borough Council,Finance,Supplies and Services,Mobile Phones,4508,VODAFONE LTD,A0040344,07/12/2023,FIN4006774,-0.29,N,,N,N
Pendle Borough Council,Finance,Supplies and Services,Mobile Phones,4508,VODAFONE LTD,A0040344,07/12/2023,FIN4006774,-0.29,N,,N,N
Pendle Borough Council,Finance,Supplies and Services,Mobile Phones,4508,VODAFONE LTD,A0040344,07/12/2023,FIN0337210,2.08,N,,N,N
Pendle Borough Council,Finance,Supplies and Services,Mobile Phones,4508,VODAFONE LTD,A0040344,07/12/2023,FIN0337210,2.08,N,,N,N
Pendle Borough Council,Housing & Environmental Health,Supplies and Services,Mobile Phones,4508,VODAFONE LTD,A0040344,07/12/2023,HEH0338095,520,N,,N,N
Pendle Borough Council,"Planning, Building Control & Regulatory Services",Supplies and Services,EFM : Other Equipment,4003,CANON (UK) LIMITED,A0040400,14/12/2023,PBC0338259,113.84,N,,N,N
Pendle Borough Council,Operational Services,Supplies and Services,Printing & Stationery,4301,CANON (UK) LIMITED,A0040400,07/12/2023,OPS0338034,6.95,N,,N,N
Pendle Borough Council,Operational Services,Supplies and Services,Printing & Stationery,4301,CANON (UK) LIMITED,A0040400,07/12/2023,OPS0338060,47.17,N,,N,N
Pendle Borough Council,Operational Services,Supplies and Services,Printing & Stationery,4301,CANON (UK) LIMITED,A0040400,07/12/2023,OPS0338061,75,N,,N,N
Pendle Borough Council,Property Services,Premises Related Expense,Bldgs : R & M : Day To Day,2001,PENNINE FIRE & SAFETY LTD,A0040931,07/12/2023,EST0338111,7.7,N,,N,N
Pendle Borough Council,Property Services,Premises Related Expense,Bldgs : R & M : Day To Day,2001,PENNINE FIRE & SAFETY LTD,A0040931,07/12/2023,EST0338133,84.85,N,,N,N
Pendle Borough Council,Property Services,Premises Related Expense,Bldgs : R & M : Day To Day,2001,PENNINE FIRE & SAFETY LTD,A0040931,07/12/2023,EST0338144,155.8,N,,N,N
Pendle Borough Council,Property Services,Premises Related Expense,Bldgs : R & M : Day To Day,2001,PENNINE FIRE & SAFETY LTD,A0040931,07/12/2023,EST0338136,15.4,N,,N,N
Pendle Borough Council,Property Services,Premises Related Expense,Bldgs : R & M : Day To Day,2001,PENNINE FIRE & SAFETY LTD,A0040931,07/12/2023,EST0338143,11.55,N,,N,N
Pendle Borough Council,Property Services,Premises Related Expense,Bldgs : R & M : Day To Day,2001,PENNINE FIRE & SAFETY LTD,A0040931,07/12/2023,EST0338146,27.1,N,,N,N
Pendle Borough Council,Property Services,Premises Related Expense,Bldgs : R & M : Day To Day,2001,PENNINE FIRE & SAFETY LTD,A0040931,07/12/2023,EST0338140,15.4,N,,N,N
Pendle Borough Council,Property Services,Premises Related Expense,Bldgs : R & M : Day To Day,2001,PENNINE FIRE & SAFETY LTD,A0040931,07/12/2023,EST0338134,8.45,N,,N,N
Pendle Borough Council,Property Services,Premises Related Expense,Bldgs : R & M : Day To Day,2001,PENNINE FIRE & SAFETY LTD,A0040931,07/12/2023,EST0338135,43.1,N,,N,N
Pendle Borough Council,Property Services,Premises Related Expense,Bldgs : R & M : Day To Day,2001,PENNINE FIRE & SAFETY LTD,A0040931,07/12/2023,EST0338112,8.45,N,,N,N
Pendle Borough Council,Property Services,Premises Related Expense,Bldgs : R & M : Day To Day,2001,PENNINE FIRE & SAFETY LTD,A0040931,07/12/2023,EST0338145,31.25,N,,N,N
Pendle Borough Council,Property Services,Premises Related Expense,Bldgs : R & M : Day To Day,2001,PENNINE FIRE & SAFETY LTD,A0040931,07/12/2023,EST0338142,7.7,N,,N,N
Pendle Borough Council,Property Services,Premises Related Expense,Bldgs : R & M : Day To Day,2001,PENNINE FIRE & SAFETY LTD,A0040931,07/12/2023,EST0338108,11.55,N,,N,N
Pendle Borough Council,Property Services,Premises Related Expense,Bldgs : R & M : Day To Day,2001,PENNINE FIRE & SAFETY LTD,A0040931,07/12/2023,EST0338148,82.65,N,,N,N
Pendle Borough Council,Property Services,Premises Related Expense,Bldgs : R & M : Day To Day,2001,PENNINE FIRE & SAFETY LTD,A0040931,14/12/2023,EST0338296,350,N,,N,N
Pendle Borough Council,Property Services,Premises Related Expense,Bldgs : R & M : Day To Day,2001,PENNINE FIRE & SAFETY LTD,A0040931,07/12/2023,EST0338141,7.7,N,,N,N
Pendle Borough Council,Property Services,Premises Related Expense,Bldgs : R & M : Day To Day,2001,PENNINE FIRE & SAFETY LTD,A0040931,07/12/2023,EST0338137,20,N,,N,N
Pendle Borough Council,Property Services,Premises Related Expense,Bldgs : R & M : Day To Day,2001,PENNINE FIRE & SAFETY LTD,A0040931,07/12/2023,EST0338147,3.85,N,,N,N
Pendle Borough Council,Property Services,Premises Related Expense,Bldgs : R & M : Day To Day,2001,PENNINE FIRE & SAFETY LTD,A0040931,07/12/2023,EST0338109,44.4,N,,N,N
Pendle Borough Council,Property Services,Premises Related Expense,Bldgs : R & M : Day To Day,2001,PENNINE FIRE & SAFETY LTD,A0040931,07/12/2023,EST0338110,11.55,N,,N,N
Pendle Borough Council,Property Services,Premises Related Expense,Bldgs : R & M : Day To Day,2001,PENNINE FIRE & SAFETY LTD,A0040931,07/12/2023,EST0338138,373.2,N,,N,N
Pendle Borough Council,Legal & Democratic Services,Supplies and Services,Printing & Stationery,4301,CIVICA ELECTION SERVICES,A0041321,07/12/2023,LAD0338062,741.17,N,,N,N
Pendle Borough Council,Operational Services,Premises Related Expense,Grounds : R & M : Day to Day : Routine,2101,C & R WALNE ENGRAVERS,A0042734,07/12/2023,OPS0338066,68,N,,N,N
Pendle Borough Council,Operational Services,,Stock : Purchases,PJ01,PMC POLYTHENE LIMITED,A0043215,14/12/2023,OPS4006771,-20,N,,N,N
Pendle Borough Council,Operational Services,,Stock : Purchases,pj01,PMC POLYTHENE LIMITED,A0043215,14/12/2023,OPS0338214,2489.8,N,,N,N
Pendle Borough Council,Operational Services,Indirect Employee Expenses,Training,1211,3M UK PLC,A0043223,14/12/2023,OPS0338216,72.54,N,,N,N
Pendle Borough Council,Operational Services,Supplies and Services,Other Expenses,4705,3M UK PLC,A0043223,14/12/2023,OPS0338216,290.16,N,,N,N
Pendle Borough Council,Operational Services,Supplies and Services,Other Expenses,4705,3M UK PLC,A0043223,14/12/2023,OPS0338216,145.08,N,,N,N
Pendle Borough Council,Operational Services,Supplies and Services,Other Expenses,4705,3M UK PLC,A0043223,14/12/2023,OPS0338216,145.08,N,,N,N
Pendle Borough Council,Property Services,Premises Related Expense,Electricity,2203,NPOWER LTD,A0044051,07/12/2023,EST0338127,943.18,N,,N,N
Pendle Borough Council,Legal & Democratic Services,Supplies and Services,Meeting Expenses,4610,WEST CRAVEN BAPTIST CHURCH,A0045270,20/12/2023,LAD0338443,40,N,,N,N
Pendle Borough Council,Operational Services,Premises Related Expense,Grounds : R & M : Day to Day : Routine,2101,SUTCLIFFE PLAY LTD,A0045788,20/12/2023,OPS0338351,42.57,N,,N,N
Pendle Borough Council,Operational Services,Premises Related Expense,Grounds : R & M : Day to Day : Routine,2101,SUTCLIFFE PLAY LTD,A0045788,07/12/2023,OPS0338087,58,N,,N,N
Pendle Borough Council,Policy & Commissioning,Supplies and Services,Grant Funding,4737,BRADLEY PRIMARY SCHOOL,A0048554,07/12/2023,POL0338104,150,N,,N,N
Pendle Borough Council,Operational Services,Transport Related Expense,Tyres,3204,ROSSENDALE VULCANISING (SALES LTD),A0051239,07/12/2023,OPS0338078,75,N,,N,N
Pendle Borough Council,Operational Services,Transport Related Expense,Tyres,3204,ROSSENDALE VULCANISING (SALES LTD),A0051239,07/12/2023,OPS0338078,185,N,,N,N
Pendle Borough Council,Operational Services,Transport Related Expense,Tyres,3204,ROSSENDALE VULCANISING (SALES LTD),A0051239,07/12/2023,OPS0338078,22,N,,N,N
Pendle Borough Council,Finance,Premises Related Expense,Rents,2301,LIBERATA UK LTD,A0051618,14/12/2023,FIN0338202,514.83,N,,N,N
Pendle Borough Council,Finance,Supplies and Services,Search Fees,4404,LIBERATA UK LTD,A0051618,07/12/2023,FIN0338044,125,N,,N,N
Pendle Borough Council,Finance,Supplies and Services,Search Fees,4404,LIBERATA UK LTD,A0051618,07/12/2023,FIN0338044,450,N,,N,N
Pendle Borough Council,Policy & Commissioning,Agency Costs,Liberata,5301,LIBERATA UK LTD,A0051618,20/12/2023,POL0338394,6531.81,N,,N,N
Pendle Borough Council,Policy & Commissioning,Agency Costs,Liberata U/C,5303,LIBERATA UK LTD,A0051618,20/12/2023,POL4006777,-200028.2,N,,N,N
Pendle Borough Council,Policy & Commissioning,Agency Costs,Liberata U/C,5303,LIBERATA UK LTD,A0051618,20/12/2023,POL0338393,158047.2,N,,N,N
Pendle Borough Council,Policy & Commissioning,Agency Costs,Liberata U/C,5303,LIBERATA UK LTD,A0051618,20/12/2023,POL0338392,200028.2,N,,N,N
Pendle Borough Council,Policy & Commissioning,Agency Costs,Liberata U/C,5303,LIBERATA UK LTD,A0051618,20/12/2023,POL0338393,-27892.5,N,,N,N
Pendle Borough Council,Policy & Commissioning,Agency Costs,Liberata U/C,5303,LIBERATA UK LTD,A0051618,20/12/2023,POL0338393,-5675,N,,N,N
Pendle Borough Council,Economic Growth,Capital Costs,Capital: Design Fees,CD53,LIBERATA UK LTD,A0051618,07/12/2023,POL0338049,3947.83,N,,N,N
Pendle Borough Council,Finance,Capital Costs,Miscellaneous,CE4F,LIBERATA UK LTD,A0051618,07/12/2023,ECO0338024,2420.13,N,,N,N
Pendle Borough Council,Finance,Capital Costs,Miscellaneous,CE4F,LIBERATA UK LTD,A0051618,07/12/2023,POL0338023,814.62,N,,N,N
Pendle Borough Council,Property Services,Indirect Employee Expenses,Staff Refreshments,1261,SIEMENS FINANCIAL SERVICES LIMITED,A0054268,20/12/2023,EST0338411,260,N,,N,N
Pendle Borough Council,Operational Services,Transport Related Expense,Tprt : Repairs : General,3105,FLEET STREET GARAGE LIMITED,A0054291,20/12/2023,OPS0338349,187.8,N,,N,N
Pendle Borough Council,Human Resources,Indirect Employee Expenses,Training,1211,BEN SHAW TRAINING LIMITED,A0055722,07/12/2023,PER0337999,210,N,,N,N
Pendle Borough Council,Human Resources,Indirect Employee Expenses,Training,1211,BEN SHAW TRAINING LIMITED,A0055722,07/12/2023,PER0337999,1400,N,,N,N
Pendle Borough Council,Policy & Commissioning,Supplies and Services,Other Expenses,4705,SMILE MEDIATION LIMITED,A0056524,14/12/2023,POL0338277,4000,N,,N,N
Pendle Borough Council,Operational Services,Premises Related Expense,Grounds : R & M : Day to Day : Routine,2101,A BINNS & CO,A0057121,20/12/2023,OPS0338378,360,N,,N,N
Pendle Borough Council,Human Resources,Supplies and Services,Seminars etc All Costs,4601,ROSSENDALE BOROUGH COUNCIL,A0057585,14/12/2023,PER0338207,233.1,N,,N,N
Pendle Borough Council,Operational Services,Transport Related Expense,Tprt : Repairs : General,3105,UNITED UTILITIES,A0059246,07/12/2023,OPS0338039,35.51,N,,N,N
Pendle Borough Council,Operational Services,Transport Related Expense,Tprt : Repairs : General,3105,UNITED UTILITIES,A0059246,07/12/2023,OPS0338039,35.51,N,,N,N
Pendle Borough Council,Economic Growth,Agency Costs,Lancashire C C,5102,NSL LIMITED,A0059256,07/12/2023,ECO0338164,2208,N,,N,N
Pendle Borough Council,Economic Growth,Agency Costs,Lancashire C C,5102,NSL LIMITED,A0059256,07/12/2023,ECO0338165,3109.6,N,,N,N
Pendle Borough Council,"Planning, Building Control & Regulatory Services",Supplies and Services,EFM : Other Equipment,4003,NATIONAL WORLD PUBLISHING LTD,A0059640,14/12/2023,PBC0338260,416.02,N,,N,N
Pendle Borough Council,"Planning, Building Control & Regulatory Services",Supplies and Services,Adverts : Statutory Notice,4702,NATIONAL WORLD PUBLISHING LTD,A0059640,07/12/2023,PBC0338041,260.01,N,,N,N
Pendle Borough Council,Legal & Democratic Services,,Other Income : Non-VATable,9303,NATIONAL WORLD PUBLISHING LTD,A0059640,07/12/2023,LAD0338068,260.01,N,,N,N
Pendle Borough Council,Legal & Democratic Services,,Other Income : Non-VATable,9303,NATIONAL WORLD PUBLISHING LTD,A0059640,07/12/2023,LAD0338069,260.01,N,,N,N
Pendle Borough Council,Housing & Environmental Health,Transfer Payments,Accommodation ,6103,HILL VIEW (PRIVATE) HOTEL,A0059754,14/12/2023,HEH0338272,16700,N,,N,N
Pendle Borough Council,Operational Services,Supplies and Services,EFM Materials,4004,CONTAINER CARE SOLUTIONS LIMITED,A0061112,14/12/2023,OPS0338211,1680,N,,N,N
Pendle Borough Council,Operational Services,Supplies and Services,EFM Materials,4004,CONTAINER CARE SOLUTIONS LIMITED,A0061112,14/12/2023,OPS0338212,9279.8,N,,N,N
Pendle Borough Council,Property Services,Premises Related Expense,Bldgs : R & M : Day To Day,2001,KEYPLUS SECURITY LIMITED,A0062723,14/12/2023,EST0338297,26.41,N,,N,N
Pendle Borough Council,Operational Services,Premises Related Expense,Grounds : R & M : Day to Day : Routine,2101,BOUNCEBACK SAFETY SERVICES LTD,A0063002,07/12/2023,OPS0338074,320,N,,N,N
Pendle Borough Council,Human Resources,Transport Related Expense,Car Allows : Offs : Lease Exps,3806,ARNOLD CLARK VEHICLE MANAGEMENT,A0065524,14/12/2023,PER0338205,120.83,N,,N,N
Pendle Borough Council,Human Resources,Transport Related Expense,Car Allows : Offs : Lease Exps,3806,ARNOLD CLARK VEHICLE MANAGEMENT,A0065524,14/12/2023,PER0338205,147.22,N,,N,N
Pendle Borough Council,Human Resources,Transport Related Expense,Tprt : Annual Hire Charge,3601,LEX AUTOLEASE LIMITED,A0066530,20/12/2023,PER0338387,343.04,N,,N,N
Pendle Borough Council,Human Resources,Indirect Employee Expenses,Emp : Medical Expenses,1236,PEOPLE ASSET MANAGEMENT LIMITED,A0067613,07/12/2023,PER0337998,89.25,N,,N,N
Pendle Borough Council,Human Resources,Indirect Employee Expenses,Emp : Medical Expenses,1236,PEOPLE ASSET MANAGEMENT LIMITED,A0067613,20/12/2023,PER0338386,110,N,,N,N
Pendle Borough Council,Economic Growth,Supplies and Services,LCC Levy (Admins Costs),4419,PATROL,A0067663,07/12/2023,ECO0337293,56.1,N,,N,N
Pendle Borough Council,Operational Services,Transport Related Expense,Tprt : Repairs : General,3105,PROBRUSH T/A NORTHERN MUNICIPAL SPARES LTD,A0068263,07/12/2023,OPS0338037,96.09,N,,N,N
Pendle Borough Council,Operational Services,Transport Related Expense,Tprt : Repairs : General,3105,PROBRUSH T/A NORTHERN MUNICIPAL SPARES LTD,A0068263,07/12/2023,OPS0338037,96.1,N,,N,N
Pendle Borough Council,Operational Services,Transport Related Expense,Tprt : Repairs : General,3105,PROBRUSH T/A NORTHERN MUNICIPAL SPARES LTD,A0068263,07/12/2023,OPS0338037,96.1,N,,N,N
Pendle Borough Council,Operational Services,Transport Related Expense,Tprt : Repairs : General,3105,PROBRUSH T/A NORTHERN MUNICIPAL SPARES LTD,A0068263,07/12/2023,OPS0338037,96.1,N,,N,N
Pendle Borough Council,Operational Services,Transport Related Expense,Tprt : Repairs : General,3105,PROBRUSH T/A NORTHERN MUNICIPAL SPARES LTD,A0068263,07/12/2023,OPS0338037,96.1,N,,N,N
Pendle Borough Council,Operational Services,Transport Related Expense,Tprt : Repairs : General,3105,PROBRUSH T/A NORTHERN MUNICIPAL SPARES LTD,A0068263,07/12/2023,OPS0338037,343.56,N,,N,N
Pendle Borough Council,Economic Growth,Supplies and Services,Processing Fees,4424,CHIPSIDE LTD,A0068587,07/12/2023,ECO0338158,7.35,N,,N,N
Pendle Borough Council,"Planning, Building Control & Regulatory Services",Supplies and Services,EFM : Other Equipment,4003,ID MANAGEMENT SYSTEMS,A0069768,07/12/2023,PBC0338150,439.1,N,,N,N
Pendle Borough Council,"Planning, Building Control & Regulatory Services",Supplies and Services,EFM : Other Equipment,4003,ID MANAGEMENT SYSTEMS,A0069768,07/12/2023,PBC0338150,62.77,N,,N,N
Pendle Borough Council,Policy & Commissioning,Supplies and Services,Sub-Contractors,4007,ACTIVE LANCASHIRE LIMITED,A0070149,07/12/2023,POL0337940,25031,N,1159832,N,N
Pendle Borough Council,Policy & Commissioning,Supplies and Services,Grant Funding,4737,ACTIVE LANCASHIRE LIMITED,A0070149,07/12/2023,POL0338102,250,N,1159832,N,N
Pendle Borough Council,Economic Growth,Supplies and Services,Other Expenses,4705,GO VELO LIMITED,A0072191,14/12/2023,ECO0338160,900,N,,N,N
Pendle Borough Council,Economic Growth,Supplies and Services,Other Expenses,4705,GO VELO LIMITED,A0072191,14/12/2023,ECO0338160,910,N,,N,N
Pendle Borough Council,Economic Growth,Supplies and Services,Other Expenses,4705,GO VELO LIMITED,A0072191,14/12/2023,ECO0338160,6000,N,,N,N
Pendle Borough Council,Housing & Environmental Health,Supplies and Services,Private Water Supply Expenditure,4425,UNITED UTILITIES WATER PLC,A0072400,07/12/2023,HEH0337917,136.31,N,,N,N
Pendle Borough Council,Operational Services,Supplies and Services,Sub-Contractors,4007,RENTOKIL INITIAL UK LIMITED,A0072816,20/12/2023,OPS0338361,23.76,N,,N,N
Pendle Borough Council,Operational Services,Supplies and Services,Sub-Contractors,4007,RENTOKIL INITIAL UK LIMITED,A0072816,14/12/2023,OPS0338215,381.85,N,,N,N
Pendle Borough Council,Operational Services,Supplies and Services,Sub-Contractors,4007,RENTOKIL INITIAL UK LIMITED,A0072816,20/12/2023,OPS0338370,643.34,N,,N,N
Pendle Borough Council,Operational Services,Supplies and Services,Sub-Contractors,4007,RENTOKIL INITIAL UK LIMITED,A0072816,20/12/2023,OPS0338370,6.34,N,,N,N
Pendle Borough Council,Operational Services,Supplies and Services,Sub-Contractors,4007,RENTOKIL INITIAL UK LIMITED,A0072816,14/12/2023,OPS0338215,65.04,N,,N,N
Pendle Borough Council,Operational Services,Supplies and Services,Sub-Contractors,4007,RENTOKIL INITIAL UK LIMITED,A0072816,20/12/2023,OPS0338370,92.14,N,,N,N
Pendle Borough Council,Operational Services,Premises Related Expense,Grounds : R & M : Day to Day : Routine,2101,FENLAND LEISURE PRODUCTS LIMITED,A0072950,14/12/2023,OPS0338246,716.2,N,,N,N
Pendle Borough Council,Housing & Environmental Health,Supplies and Services,Other Expenses,4705,BASIS (REGISTRATION) LTD,A0074789,07/12/2023,HEH0337957,68,N,,N,N
Pendle Borough Council,Legal & Democratic Services,Supplies and Services,Printing & Stationery,4301,THOMSON REUTERS PROFESSIONAL UK LIMITED,A0077400,14/12/2023,LAD0338241,343,N,,N,N
Pendle Borough Council,Legal & Democratic Services,Supplies and Services,Printing & Stationery,4301,THOMSON REUTERS PROFESSIONAL UK LIMITED,A0077400,07/12/2023,LAD0338100,1153.95,N,,N,N
Pendle Borough Council,"Planning, Building Control & Regulatory Services",Supplies and Services,EFM : Other Equipment,4003,DIAMOND PEOPLE LIMITED,A0077714,20/12/2023,PBC0338436,300,N,,N,N
Pendle Borough Council,Economic Growth,Support Services,Staffing Recharge,7102,IN-SITU,A0079936,07/12/2023,ECO0338171,10784.85,N,,N,N
Pendle Borough Council,Economic Growth,Capital Costs,Capital : Salaries,CD13,IN-SITU,A0079936,07/12/2023,ECO0338171,3000,N,,N,N
Pendle Borough Council,Economic Growth,Capital Costs,Public Realm,CD20,IN-SITU,A0079936,07/12/2023,ECO0338171,1963,N,,N,N
Pendle Borough Council,Economic Growth,Capital Costs,Capital : Payments,CD14,PETER BIRTWISTLE TRUST,A0081345,20/12/2023,ECO0338438,250,N,,N,N
Pendle Borough Council,Housing & Environmental Health,Supplies and Services,Other Expenses,4705,BLACKO PARISH COUNCIL,A0084321,07/12/2023,HEH0337575,1000,N,,N,N
Pendle Borough Council,Finance,Supplies and Services,Allpay,4422,ALLPAY LIMITED,A0084372,07/12/2023,FIN0338027,11,N,,N,N
Pendle Borough Council,Finance,Supplies and Services,Allpay,4422,ALLPAY LIMITED,A0084372,07/12/2023,FIN0338029,11,N,,N,N
Pendle Borough Council,Finance,Supplies and Services,Allpay,4422,ALLPAY LIMITED,A0084372,07/12/2023,FIN0338030,20.2,N,,N,N
Pendle Borough Council,Finance,Supplies and Services,Allpay,4422,ALLPAY LIMITED,A0084372,07/12/2023,FIN0338028,22.77,N,,N,N
Pendle Borough Council,Finance,Supplies and Services,Allpay,4422,ALLPAY LIMITED,A0084372,07/12/2023,FIN0338025,70.57,N,,N,N
Pendle Borough Council,Finance,Supplies and Services,Allpay,4422,ALLPAY LIMITED,A0084372,07/12/2023,FIN0338026,1944.62,N,,N,N
Pendle Borough Council,Housing & Environmental Health,,Housing Impts/Cap Repairs,0104,ELITE PLUMBING,A0084584,20/12/2023,HEH0338309,1600,N,,N,N
Pendle Borough Council,Housing & Environmental Health,,Housing Impts/Cap Repairs,0104,ELITE PLUMBING,A0084584,20/12/2023,HEH0338307,1600,N,,N,N
Pendle Borough Council,Housing & Environmental Health,,Housing Impts/Cap Repairs,0104,ELITE PLUMBING,A0084584,14/12/2023,HEH0338235,1750,N,,N,N
Pendle Borough Council,Directorate,Supplies and Services,Consultants Fees,4401,ALLIANCE LEISURE SERVICES LIMITED,A0084806,14/12/2023,DIR0338203,14790,N,,N,N
Pendle Borough Council,Policy & Commissioning,Supplies and Services,Other Expenses,4705,REDACT - PERSONAL DATA,A0085472,20/12/2023,POL0338439,171.76,N,,N,N
Pendle Borough Council,Economic Growth,Supplies and Services,Consultants Fees,4401,KEVIN WILKINSON LANDSCAPES LTD,A0085660,07/12/2023,ECO0338174,216,N,,N,N
Pendle Borough Council,Operational Services,Premises Related Expense,Grounds : R & M : Day to Day : Routine,2101,SECURE-A-FIELD LIMITED,A0087151,07/12/2023,OPS0337771,386.25,N,,N,N
Pendle Borough Council,Economic Growth,Premises Related Expense,Grounds : R & M : Day to Day : Routine,2101,MARCHBRIDGE BUILDERS LIMITED,A0087284,14/12/2023,ECO0338268,1209.6,N,,N,N
Pendle Borough Council,Economic Growth,Capital Costs,Capital : Payments,CD14,MARCHBRIDGE BUILDERS LIMITED,A0087284,14/12/2023,ECO0338271,1297.52,N,,N,N
Pendle Borough Council,Operational Services,Premises Related Expense,Bldgs : R & M : Day To Day,2001,THORLEY SMITH LIMITED,A0089939,07/12/2023,OPS0338088,421.15,N,,N,N
Pendle Borough Council,Economic Growth,Supplies and Services,Other Expenses,4705,O`CALLAGHAN LIMITED,A0090052,20/12/2023,ECO0338435,6915,N,,N,N
Pendle Borough Council,Policy & Commissioning,Supplies and Services,Publicity & advertisement,4704,WE LOVE CREATIVE LIMITED,A0090098,07/12/2023,POL0338050,400,N,,N,N
Pendle Borough Council,Operational Services,Premises Related Expense,Grounds : R & M : Day to Day : Routine,2101,MARTIN LEE,A0090177,07/12/2023,OPS0338075,2571.5,N,,N,N
Pendle Borough Council,Operational Services,,Stock : Purchases,PJ01,LANDSCAPE SUPPLY COMPANY,A0090209,20/12/2023,OPS0338362,57.85,N,,N,N
Pendle Borough Council,Legal & Democratic Services,Supplies and Services,Mayoral Expenses,4614,NATIONAL ASSOCIATION OF CIVIC OFFICERS,A0090228,14/12/2023,LAD0338243,100,N,,N,N
Pendle Borough Council,Policy & Commissioning,Supplies and Services,Grant Funding,4737,ST JOHN WITH ST PHILIP PCC,A0090537,14/12/2023,POL0338228,7800,N,,N,N
Pendle Borough Council,Revenues Services,Supplies and Services,DSS Collection Fee,4414,PS&P LTD,A0090720,14/12/2023,TRE0338256,3.78,N,,N,N
Pendle Borough Council,Revenues Services,Supplies and Services,DSS Collection Fee,4414,PS&P LTD,A0090720,07/12/2023,TRE0338101,14,N,,N,N
Pendle Borough Council,Finance,Capital Costs,Capital: Construction: Conversion/Refu,CD57,B & E BOYS LIMITED,A0090790,20/12/2023,FIN0338465,120390.32,N,,N,N
Pendle Borough Council,Policy & Commissioning,Supplies and Services,Grant Funding,4737,PENDLE NEW NEIGHBOURS,A0091208,14/12/2023,POL0338226,150,N,,N,N
Pendle Borough Council,Housing & Environmental Health,Capital Costs,Ren Grant : 1996 Act,CH22,THE EXCELLENT RAMP SYSTEM LIMITED,A0091363,14/12/2023,HEH0338236,5180,N,,N,N
Pendle Borough Council,Operational Services,Transport Related Expense,Diesel Oil,3202,WCF LIMITED,A0091385,07/12/2023,OPS0338031,560,N,,N,N
Pendle Borough Council,Operational Services,Transport Related Expense,Diesel Oil,3202,WCF LIMITED,A0091385,07/12/2023,OPS0338032,560,N,,N,N
Pendle Borough Council,Operational Services,Supplies and Services,Miscellaneous : Other,4707,PERMISERV LIMITED,A0091396,14/12/2023,OPS0338209,21.64,N,,N,N
Pendle Borough Council,"Planning, Building Control & Regulatory Services",,Fees Income : Non-VATable,9302,PORTALPLANQUEST LIMITED,A0091554,07/12/2023,PBC0338153,462,N,,N,N
Pendle Borough Council,Operational Services,Agency Staff,Emp : Basic Wages,1001,NW RECRUITMENT SERVICES LIMITED,A0091588,07/12/2023,OPS0338090,2202.06,N,,N,N
Pendle Borough Council,Operational Services,Agency Staff,Emp : Basic Wages,1001,NW RECRUITMENT SERVICES LIMITED,A0091588,20/12/2023,OPS0338350,2516.64,N,,N,N
Pendle Borough Council,Operational Services,Agency Staff,Emp : Basic Wages,1001,NW RECRUITMENT SERVICES LIMITED,A0091588,14/12/2023,OPS0338247,2668.88,N,,N,N
Pendle Borough Council,Operational Services,Agency Staff,Emp : Basic Wages,1001,NW RECRUITMENT SERVICES LIMITED,A0091588,07/12/2023,OPS0337774,2708.42,N,,N,N
Pendle Borough Council,Operational Services,Agency Staff,Emp : Basic Wages,1001,NW RECRUITMENT SERVICES LIMITED,A0091588,20/12/2023,OPS0338353,7235.62,N,,N,N
Pendle Borough Council,Legal & Democratic Services,Agency Staff,Emp : Agency Wages,1004,NW RECRUITMENT SERVICES LIMITED,A0091588,14/12/2023,LAD0338275,262.15,N,,N,N
Pendle Borough Council,Legal & Democratic Services,Agency Staff,Emp : Agency Wages,1004,NW RECRUITMENT SERVICES LIMITED,A0091588,14/12/2023,LAD0338273,333.31,N,,N,N
Pendle Borough Council,Legal & Democratic Services,Agency Staff,Emp : Agency Wages,1004,NW RECRUITMENT SERVICES LIMITED,A0091588,14/12/2023,LAD0338274,549.78,N,,N,N
Pendle Borough Council,Operational Services,Agency Staff,Emp : Agency Wages,1004,NW RECRUITMENT SERVICES LIMITED,A0091588,07/12/2023,OPS0337782,124.02,N,,N,N
Pendle Borough Council,Operational Services,Agency Staff,Emp : Agency Wages,1004,NW RECRUITMENT SERVICES LIMITED,A0091588,20/12/2023,OPS0338376,299.27,N,,N,N
Pendle Borough Council,Operational Services,Agency Staff,Emp : Agency Wages,1004,NW RECRUITMENT SERVICES LIMITED,A0091588,20/12/2023,OPS0338356,2467.44,N,,N,N
Pendle Borough Council,Operational Services,Agency Staff,Emp : Agency Wages,1004,NW RECRUITMENT SERVICES LIMITED,A0091588,14/12/2023,OPS0338221,3322.79,N,,N,N
Pendle Borough Council,Operational Services,Agency Staff,Emp : Agency Wages,1004,NW RECRUITMENT SERVICES LIMITED,A0091588,20/12/2023,OPS0338357,3661.08,N,,N,N
Pendle Borough Council,Operational Services,Agency Staff,Emp : Agency Wages,1004,NW RECRUITMENT SERVICES LIMITED,A0091588,14/12/2023,OPS0338222,3720.8,N,,N,N
Pendle Borough Council,Operational Services,Agency Staff,Emp : Agency Wages,1004,NW RECRUITMENT SERVICES LIMITED,A0091588,20/12/2023,OPS0338358,12681.13,N,,N,N
Pendle Borough Council,Operational Services,Agency Staff,Emp : Agency Wages,1004,NW RECRUITMENT SERVICES LIMITED,A0091588,20/12/2023,OPS0338356,1875.53,N,,N,N
Pendle Borough Council,Operational Services,Agency Staff,Emp : Agency Wages,1004,NW RECRUITMENT SERVICES LIMITED,A0091588,14/12/2023,OPS0338221,2076.99,N,,N,N
Pendle Borough Council,Operational Services,Agency Staff,Emp : Agency Wages,1004,NW RECRUITMENT SERVICES LIMITED,A0091588,14/12/2023,OPS0338222,2328.9,N,,N,N
Pendle Borough Council,Operational Services,Agency Staff,Emp : Agency Wages,1004,NW RECRUITMENT SERVICES LIMITED,A0091588,20/12/2023,OPS0338357,3302.55,N,,N,N
Pendle Borough Council,Operational Services,Agency Staff,Emp : Agency Wages,1004,NW RECRUITMENT SERVICES LIMITED,A0091588,20/12/2023,OPS0338358,8644.1,N,,N,N
Pendle Borough Council,Operational Services,Agency Staff,Emp : Agency Wages,1004,NW RECRUITMENT SERVICES LIMITED,A0091588,14/12/2023,OPS0338222,1369.45,N,,N,N
Pendle Borough Council,Operational Services,Agency Staff,Emp : Agency Wages,1004,NW RECRUITMENT SERVICES LIMITED,A0091588,20/12/2023,OPS0338357,1374.32,N,,N,N
Pendle Borough Council,Operational Services,Agency Staff,Emp : Agency Wages,1004,NW RECRUITMENT SERVICES LIMITED,A0091588,14/12/2023,OPS0338221,2027.13,N,,N,N
Pendle Borough Council,Operational Services,Agency Staff,Emp : Agency Wages,1004,NW RECRUITMENT SERVICES LIMITED,A0091588,20/12/2023,OPS0338356,2384.55,N,,N,N
Pendle Borough Council,Operational Services,Agency Staff,Emp : Agency Wages,1004,NW RECRUITMENT SERVICES LIMITED,A0091588,20/12/2023,OPS0338358,4586.35,N,,N,N
Pendle Borough Council,Operational Services,Premises Related Expense,Bldgs : R & M : Day To Day,2001,NW RECRUITMENT SERVICES LIMITED,A0091588,20/12/2023,OPS0338375,29.18,N,,N,N
Pendle Borough Council,Housing & Environmental Health,,Housing Impts/Cap Repairs,0104,RHEA PROJECTS LIMITED,A0091628,14/12/2023,HEH0338233,648,N,,N,N
Pendle Borough Council,Policy & Commissioning,Supplies and Services,Grant Funding,4737,COLNE PARISH CHURCH ST BARTHOLOMEW,A0091630,14/12/2023,POL0338225,7800,N,,N,N
Pendle Borough Council,Housing & Environmental Health,Supplies and Services,Other Expenses,4705,COLNE BID LIMITED,A0091663,20/12/2023,HEH0338346,4000,N,,N,N
Pendle Borough Council,Economic Growth,Premises Related Expense,Bldgs : R & M : Day To Day,2001,A&G LANDSCAPES & GROUNDWORKS LIMITED,A0091675,14/12/2023,ECO0338263,100,N,,N,N
Pendle Borough Council,Economic Growth,Premises Related Expense,Grounds : R & M : Day to Day : Routine,2101,A&G LANDSCAPES & GROUNDWORKS LIMITED,A0091675,14/12/2023,ECO0338269,85,N,,N,N
Pendle Borough Council,Economic Growth,Premises Related Expense,Grounds : R & M : Day to Day : Routine,2101,A&G LANDSCAPES & GROUNDWORKS LIMITED,A0091675,14/12/2023,ECO0338269,125,N,,N,N
Pendle Borough Council,Operational Services,Premises Related Expense,Grounds : R & M : Day to Day : Routine,2101,A&G LANDSCAPES & GROUNDWORKS LIMITED,A0091675,14/12/2023,OPS0338245,500,N,,N,N
Pendle Borough Council,Economic Growth,Premises Related Expense,Grounds : R & M : Day to Day : Routine,2101,A&G LANDSCAPES & GROUNDWORKS LIMITED,A0091675,20/12/2023,ECO0338433,40,N,,N,N
Pendle Borough Council,Economic Growth,Premises Related Expense,Grounds : R & M : Day to Day : Routine,2101,A&G LANDSCAPES & GROUNDWORKS LIMITED,A0091675,07/12/2023,ECO0338154,200,N,,N,N
Pendle Borough Council,Economic Growth,Premises Related Expense,Grounds : R & M : Day to Day : Routine,2101,A&G LANDSCAPES & GROUNDWORKS LIMITED,A0091675,07/12/2023,ECO0338154,250,N,,N,N
Pendle Borough Council,Economic Growth,Premises Related Expense,Grounds : R & M : Day to Day : Routine,2101,A&G LANDSCAPES & GROUNDWORKS LIMITED,A0091675,20/12/2023,ECO0338433,250,N,,N,N
Pendle Borough Council,Economic Growth,Premises Related Expense,Grounds : R & M : Day to Day : Routine,2101,A&G LANDSCAPES & GROUNDWORKS LIMITED,A0091675,20/12/2023,ECO0338430,50,N,,N,N
Pendle Borough Council,Economic Growth,Premises Related Expense,Grounds : R & M : Day to Day : Routine,2101,A&G LANDSCAPES & GROUNDWORKS LIMITED,A0091675,20/12/2023,ECO0338431,50,N,,N,N
Pendle Borough Council,Economic Growth,Premises Related Expense,Grounds : R & M : Day to Day : Routine,2101,A&G LANDSCAPES & GROUNDWORKS LIMITED,A0091675,20/12/2023,ECO0338430,106.25,N,,N,N
Pendle Borough Council,Economic Growth,Premises Related Expense,Grounds : R & M : Day to Day : Routine,2101,A&G LANDSCAPES & GROUNDWORKS LIMITED,A0091675,20/12/2023,ECO0338431,150,N,,N,N
Pendle Borough Council,Economic Growth,Premises Related Expense,Grounds : R & M : Day to Day : Routine,2101,A&G LANDSCAPES & GROUNDWORKS LIMITED,A0091675,20/12/2023,ECO0338433,200,N,,N,N
Pendle Borough Council,Economic Growth,Premises Related Expense,Grounds : R & M : Day to Day : Routine,2101,A&G LANDSCAPES & GROUNDWORKS LIMITED,A0091675,14/12/2023,ECO0338264,50,N,,N,N
Pendle Borough Council,Economic Growth,Premises Related Expense,Grounds : R & M : Day to Day : Routine,2101,A&G LANDSCAPES & GROUNDWORKS LIMITED,A0091675,14/12/2023,ECO0338266,50,N,,N,N
Pendle Borough Council,Economic Growth,Premises Related Expense,Grounds : R & M : Day to Day : Routine,2101,A&G LANDSCAPES & GROUNDWORKS LIMITED,A0091675,14/12/2023,ECO0338267,50,N,,N,N
Pendle Borough Council,Operational Services,Premises Related Expense,Grounds : Vandalism Repairs,2102,A&G LANDSCAPES & GROUNDWORKS LIMITED,A0091675,14/12/2023,OPS0338245,200,N,,N,N
Pendle Borough Council,Economic Growth,Supplies and Services,Other Expenses,4705,A&G LANDSCAPES & GROUNDWORKS LIMITED,A0091675,20/12/2023,ECO0338434,600,N,,N,N
Pendle Borough Council,Economic Growth,Supplies and Services,Other Expenses,4705,A&G LANDSCAPES & GROUNDWORKS LIMITED,A0091675,20/12/2023,ECO0338434,750,N,,N,N
Pendle Borough Council,Economic Growth,Supplies and Services,Other Expenses,4705,A&G LANDSCAPES & GROUNDWORKS LIMITED,A0091675,07/12/2023,ECO0338157,100,N,,N,N
Pendle Borough Council,Economic Growth,Supplies and Services,Other Expenses,4705,A&G LANDSCAPES & GROUNDWORKS LIMITED,A0091675,07/12/2023,ECO0338157,1250,N,,N,N
Pendle Borough Council,Economic Growth,Capital Costs,Capital : Payments,CD14,A&G LANDSCAPES & GROUNDWORKS LIMITED,A0091675,20/12/2023,ECO0338432,500,N,,N,N
Pendle Borough Council,Economic Growth,Capital Costs,Capital : Payments,CD14,A&G LANDSCAPES & GROUNDWORKS LIMITED,A0091675,20/12/2023,ECO0338432,1074.85,N,,N,N
Pendle Borough Council,Housing & Environmental Health,Capital Costs,Capital : Payments,CD14,HARDCORE CRUSHING LIMITED,A0091681,14/12/2023,HEH0338301,10681,N,,N,N
Pendle Borough Council,Housing & Environmental Health,Supplies and Services,Other Expenses,4705,ONWARD HOMES,A0091688,14/12/2023,HEH0338257,355.6,N,,N,N
Pendle Borough Council,Finance,Capital Costs,Capital : Payments,CD14,BRYAN LEE BUILDING CONTRACTORS LIMITED,A0091749,20/12/2023,FIN0338466,4930.33,N,,N,N
Pendle Borough Council,Housing & Environmental Health,Agency Staff,Emp : Agency Wages,1004,THE OYSTER PARTNERSHIP LIMITED,A0091781,07/12/2023,HEH0337921,1500.55,N,,N,N
Pendle Borough Council,Housing & Environmental Health,Agency Staff,Emp : Agency Wages,1004,THE OYSTER PARTNERSHIP LIMITED,A0091781,20/12/2023,HEH0338310,1522.36,N,,N,N
Pendle Borough Council,"Planning, Building Control & Regulatory Services",Supplies and Services,Other Expenses,4705,THE OYSTER PARTNERSHIP LIMITED,A0091781,07/12/2023,PBC0338175,1428,N,,N,N
Pendle Borough Council,"Planning, Building Control & Regulatory Services",Supplies and Services,Other Expenses,4705,THE OYSTER PARTNERSHIP LIMITED,A0091781,07/12/2023,PBC0337995,1491,N,,N,N
Pendle Borough Council,Legal & Democratic Services,Supplies and Services,Consultants Fees,4401,MR SIMON WHITFIELD,A0091841,07/12/2023,LAD0338067,2500,N,,N,N
Pendle Borough Council,Housing & Environmental Health,Capital Costs,Ren Grant : 1996 Act,CH22,DYNAMIC PLUMBING AND HEATING,A0091941,20/12/2023,HEH0338345,8345.2,N,,N,N
Pendle Borough Council,Housing & Environmental Health,Capital Costs,Ren Grant : 1996 Act,CH22,DYNAMIC PLUMBING AND HEATING,A0091941,07/12/2023,HEH0338082,8763.4,N,,N,N
Pendle Borough Council,Housing & Environmental Health,Capital Costs,Ren Grant : 1996 Act,CH22,BUILDEASI NW LTD,A0091945,07/12/2023,HEH0338096,9934.68,N,,N,N
Pendle Borough Council,Policy & Commissioning,Supplies and Services,Grant Funding,4737,PENDLE FOOD FOR ALL FOOD CLUB,A0091966,07/12/2023,POL0338103,150,N,,N,N
Pendle Borough Council,Operational Services,,Stock : Purchases,PJ01,SMI GROUP UK,A0091999,07/12/2023,OPS0338059,117.97,N,,N,N
Pendle Borough Council,Housing & Environmental Health,,Housing Impts/Cap Repairs,0104,AZTEC GAS LTD,A0092485,07/12/2023,HEH0337915,242,N,,N,N
Pendle Borough Council,Housing & Environmental Health,,Housing Impts/Cap Repairs,0104,BOILER HOUSE EARBY LTD,A0093438,14/12/2023,HEH0338234,2900,N,,N,N
Pendle Borough Council,Housing & Environmental Health,,Housing Impts/Cap Repairs,0104,BOILER HOUSE EARBY LTD,A0093438,20/12/2023,HEH0338308,5750,N,,N,N
Pendle Borough Council,Policy & Commissioning,Supplies and Services,Subscriptions & Donations,4706,BUILDING BRIDGES PENDLE,A0094107,07/12/2023,POL0337727,7500,N,,N,N
Pendle Borough Council,Revenues Services,Supplies and Services,DSS Collection Fee,4414,MARSTON (HOLDINGS) LIMITED,A0094273,07/12/2023,TRE0338106,10.8,N,,N,N
Pendle Borough Council,Economic Growth,Supplies and Services,LCC Levy (Admins Costs),4419,MARSTON (HOLDINGS) LIMITED,A0094273,07/12/2023,ECO0338163,-310,N,,N,N
Pendle Borough Council,Economic Growth,Supplies and Services,LCC Levy (Admins Costs),4419,MARSTON (HOLDINGS) LIMITED,A0094273,07/12/2023,ECO0338163,310,N,,N,N
Pendle Borough Council,Housing & Environmental Health,Premises Related Expense,Bldgs : R & M : Abnormal,2002,SOUTHFIELD CONSTRUCTION,A0094294,14/12/2023,HEH0338237,1280,N,,N,N
Pendle Borough Council,Housing & Environmental Health,Supplies and Services,Other Expenses,4705,MICHAEL PAGE INTERNATIONAL RECRUITMENT LTD,A0094988,07/12/2023,HEH0338081,649.95,N,,N,N
Pendle Borough Council,Housing & Environmental Health,Supplies and Services,Other Expenses,4705,MICHAEL PAGE INTERNATIONAL RECRUITMENT LTD,A0094988,07/12/2023,HEH0338097,649.95,N,,N,N
Pendle Borough Council,Housing & Environmental Health,Supplies and Services,Other Expenses,4705,MICHAEL PAGE INTERNATIONAL RECRUITMENT LTD,A0094988,07/12/2023,HEH0338098,649.95,N,,N,N
Pendle Borough Council,Property Services,,Personnel : Refundable Rental Deposits,B622,REDACT - PERSONAL DATA,A0095170,07/12/2023,EST0338149,1166.67,N,,N,N
Pendle Borough Council,Economic Growth,Premises Related Expense,Grounds : R & M : Day to Day : Routine,2101,LOOP PUBLISHING LTD,A0095691,07/12/2023,ECO0338162,275,N,,N,N
Pendle Borough Council,Policy & Commissioning,Supplies and Services,Publicity & advertisement,4704,LOOP PUBLISHING LTD,A0095691,14/12/2023,POL0338231,300,N,,N,N
Pendle Borough Council,Operational Services,Premises Related Expense,Grounds : R & M : Day to Day : Routine,2101,M W ENVIRONMENTAL,A0095862,20/12/2023,OPS0338380,125,N,,N,N
Pendle Borough Council,Operational Services,Premises Related Expense,Grounds : R & M : Day to Day : Routine,2101,M W ENVIRONMENTAL,A0095862,20/12/2023,OPS0338379,35,N,,N,N
Pendle Borough Council,Operational Services,Premises Related Expense,Grounds : R & M : Day to Day : Routine,2101,M W ENVIRONMENTAL,A0095862,20/12/2023,OPS0338377,265,N,,N,N
Pendle Borough Council,Operational Services,Premises Related Expense,Grounds : R & M : Day to Day : Routine,2101,M W ENVIRONMENTAL,A0095862,07/12/2023,OPS0338070,608.94,N,,N,N
Pendle Borough Council,Finance,Agency Staff,Emp : Agency Wages,1004,GATENBY SANDERSON,A0096387,20/12/2023,FIN0338467,2058,N,,N,N
Pendle Borough Council,Policy & Commissioning,Supplies and Services,Children`s holiday activities,4716,HARRINGTONS LEARNING CENTRE,A0096412,14/12/2023,POL0338229,9720,N,,N,N
Pendle Borough Council,Property Services,Premises Related Expense,Gas,2202,E.ON NEXT ENERGY LIMITED,A0096428,20/12/2023,EST0338421,30.04,N,,N,N
Pendle Borough Council,Property Services,Premises Related Expense,Gas,2202,E.ON NEXT ENERGY LIMITED,A0096428,20/12/2023,EST0338422,30.39,N,,N,N
Pendle Borough Council,Property Services,Premises Related Expense,Electricity,2203,E.ON NEXT ENERGY LIMITED,A0096428,20/12/2023,EST0338426,30,N,,N,N
Pendle Borough Council,Property Services,Premises Related Expense,Electricity,2203,E.ON NEXT ENERGY LIMITED,A0096428,20/12/2023,EST0338410,42.34,N,,N,N
Pendle Borough Council,Property Services,Premises Related Expense,Electricity,2203,E.ON NEXT ENERGY LIMITED,A0096428,20/12/2023,EST0338419,55.08,N,,N,N
Pendle Borough Council,Property Services,Premises Related Expense,Electricity,2203,E.ON NEXT ENERGY LIMITED,A0096428,14/12/2023,EST0338294,141.53,N,,N,N
Pendle Borough Council,Property Services,Premises Related Expense,Electricity,2203,E.ON NEXT ENERGY LIMITED,A0096428,20/12/2023,EST0338425,30,N,,N,N
Pendle Borough Council,Property Services,Premises Related Expense,Electricity,2203,E.ON NEXT ENERGY LIMITED,A0096428,14/12/2023,EST0338292,31,N,,N,N
Pendle Borough Council,Property Services,Premises Related Expense,Electricity,2203,E.ON NEXT ENERGY LIMITED,A0096428,14/12/2023,EST0338293,31,N,,N,N
Pendle Borough Council,Property Services,Premises Related Expense,Electricity,2203,E.ON NEXT ENERGY LIMITED,A0096428,14/12/2023,EST0338299,31,N,,N,N
Pendle Borough Council,Property Services,Premises Related Expense,Electricity,2203,E.ON NEXT ENERGY LIMITED,A0096428,20/12/2023,EST0338424,34.29,N,,N,N
Pendle Borough Council,Operational Services,Premises Related Expense,Bldgs : R & M : Day To Day,2001,BANNISTER HALL LIMITED,A0096507,07/12/2023,OPS0337773,130,N,,N,N
Pendle Borough Council,Operational Services,Premises Related Expense,Bldgs : R & M : Day To Day,2001,BANNISTER HALL LIMITED,A0096507,07/12/2023,OPS0338071,135,N,,N,N
Pendle Borough Council,Finance,Supplies and Services,Grant Funding,4737,REDACT - PERSONAL DATA,A0096806,20/12/2023,FIN0338448,125,N,,N,N
Pendle Borough Council,Finance,Supplies and Services,Grant Funding,4737,REDACT - PERSONAL DATA,A0096806,20/12/2023,FIN0338448,500,N,,N,N
Pendle Borough Council,Finance,Supplies and Services,Grant Funding,4737,REDACT - PERSONAL DATA,A0096808,20/12/2023,FIN0338450,125,N,,N,N
Pendle Borough Council,Finance,Supplies and Services,Grant Funding,4737,REDACT - PERSONAL DATA,A0096808,20/12/2023,FIN0338450,500,N,,N,N
Pendle Borough Council,Finance,Supplies and Services,Grant Funding,4737,REDACT - PERSONAL DATA,A0096819,20/12/2023,FIN0338451,125,N,,N,N
Pendle Borough Council,Finance,Supplies and Services,Grant Funding,4737,REDACT - PERSONAL DATA,A0096819,20/12/2023,FIN0338451,500,N,,N,N
Pendle Borough Council,Finance,Supplies and Services,Grant Funding,4737,REDACT - PERSONAL DATA,A0096823,20/12/2023,FIN0338449,125,N,,N,N
Pendle Borough Council,Finance,Supplies and Services,Grant Funding,4737,REDACT - PERSONAL DATA,A0096823,20/12/2023,FIN0338449,500,N,,N,N
Pendle Borough Council,Finance,Supplies and Services,Other Expenses,4705,POST OFFICE LTD,A0096844,20/12/2023,FIN0338407,10.2,N,,N,N
Pendle Borough Council,Finance,Supplies and Services,Grant Funding,4737,REDACT - PERSONAL DATA,A0096866,20/12/2023,FIN0338452,125,N,,N,N
Pendle Borough Council,Finance,Supplies and Services,Grant Funding,4737,REDACT - PERSONAL DATA,A0096866,20/12/2023,FIN0338452,500,N,,N,N
Pendle Borough Council,Finance,Supplies and Services,Grant Funding,4737,REDACT - PERSONAL DATA,A0096872,20/12/2023,FIN0338453,125,N,,N,N
Pendle Borough Council,Finance,Supplies and Services,Grant Funding,4737,REDACT - PERSONAL DATA,A0096872,20/12/2023,FIN0338453,500,N,,N,N
Pendle Borough Council,Finance,Supplies and Services,Grant Funding,4737,REDACT - PERSONAL DATA,A0096893,20/12/2023,FIN0338454,125,N,,N,N
Pendle Borough Council,Finance,Supplies and Services,Grant Funding,4737,REDACT - PERSONAL DATA,A0096893,20/12/2023,FIN0338454,500,N,,N,N
Pendle Borough Council,Finance,Supplies and Services,Grant Funding,4737,REDACT - PERSONAL DATA,A0096916,20/12/2023,FIN0338455,125,N,,N,N
Pendle Borough Council,Finance,Supplies and Services,Grant Funding,4737,REDACT - PERSONAL DATA,A0096916,20/12/2023,FIN0338455,500,N,,N,N
Pendle Borough Council,Operational Services,Capital Costs,Capital : Payments,CD14,THE CDS GROUP,A0096940,14/12/2023,OPS0338178,300,N,,N,N
Pendle Borough Council,Operational Services,Capital Costs,Capital : Payments,CD14,THE CDS GROUP,A0096940,14/12/2023,OPS0338179,300,N,,N,N
Pendle Borough Council,Operational Services,Capital Costs,Capital : Payments,CD14,THE CDS GROUP,A0096940,14/12/2023,OPS0338177,450,N,,N,N
Pendle Borough Council,Operational Services,Capital Costs,Capital : Payments,CD14,THE CDS GROUP,A0096940,14/12/2023,OPS0338178,450,N,,N,N
Pendle Borough Council,Operational Services,Capital Costs,Capital : Payments,CD14,THE CDS GROUP,A0096940,14/12/2023,OPS0338179,450,N,,N,N
Pendle Borough Council,Operational Services,Capital Costs,Capital : Payments,CD14,THE CDS GROUP,A0096940,14/12/2023,OPS0338178,1710,N,,N,N
Pendle Borough Council,Operational Services,Capital Costs,Capital : Payments,CD14,THE CDS GROUP,A0096940,14/12/2023,OPS0338177,300,N,,N,N
Pendle Borough Council,Operational Services,Capital Costs,Capital : Payments,CD14,THE CDS GROUP,A0096940,14/12/2023,OPS0338177,1710,N,,N,N
Pendle Borough Council,Operational Services,Capital Costs,Capital : Payments,CD14,THE CDS GROUP,A0096940,14/12/2023,OPS0338179,1710,N,,N,N
Pendle Borough Council,Operational Services,Capital Costs,Capital : Payments,CD14,THE CDS GROUP,A0096940,20/12/2023,OPS0338304,800,N,,N,N
Pendle Borough Council,Operational Services,Capital Costs,Capital : Payments,CD14,THE CDS GROUP,A0096940,14/12/2023,OPS0338180,1100,N,,N,N
Pendle Borough Council,Operational Services,Capital Costs,Capital : Payments,CD14,THE CDS GROUP,A0096940,20/12/2023,OPS0338302,1250,N,,N,N
Pendle Borough Council,Operational Services,Capital Costs,Capital : Payments,CD14,THE CDS GROUP,A0096940,20/12/2023,OPS0338303,1832,N,,N,N
Pendle Borough Council,Operational Services,Capital Costs,Capital : Payments,CD14,THE CDS GROUP,A0096940,14/12/2023,OPS0338180,2800,N,,N,N
Pendle Borough Council,Operational Services,Capital Costs,Capital : Payments,CD14,THE CDS GROUP,A0096940,14/12/2023,OPS0338180,3250,N,,N,N
Pendle Borough Council,Operational Services,Capital Costs,Capital : Payments,CD14,THE CDS GROUP,A0096940,14/12/2023,OPS0338180,4500,N,,N,N
Pendle Borough Council,Operational Services,Capital Costs,Capital : Payments,CD14,THE CDS GROUP,A0096940,20/12/2023,OPS0338305,48539,N,,N,N
Pendle Borough Council,Economic Growth,Supplies and Services,Consultants Fees,4401,OPTIMISED ENVIRONMENTS LIMITED,A0096971,14/12/2023,ECO0338265,5699,N,,N,N
Pendle Borough Council,Finance,Supplies and Services,Grant Funding,4737,REDACT - PERSONAL DATA,A0096978,20/12/2023,FIN0338456,125,N,,N,N
Pendle Borough Council,Finance,Supplies and Services,Grant Funding,4737,REDACT - PERSONAL DATA,A0096978,20/12/2023,FIN0338456,350,N,,N,N
Pendle Borough Council,Finance,Supplies and Services,Grant Funding,4737,REDACT - PERSONAL DATA,A0096980,20/12/2023,FIN0338457,125,N,,N,N
Pendle Borough Council,Finance,Supplies and Services,Grant Funding,4737,REDACT - PERSONAL DATA,A0096980,20/12/2023,FIN0338457,350,N,,N,N
Pendle Borough Council,Economic Growth,Supplies and Services,Consultants Fees,4401,RAISE PARTNERSHIP LIMITED,A0096986,07/12/2023,ECO0338170,8400,N,,N,N
Pendle Borough Council,Economic Growth,Supplies and Services,Consultants Fees,4401,RAISE PARTNERSHIP LIMITED,A0096986,07/12/2023,ECO0338167,1822,N,,N,N
Pendle Borough Council,Economic Growth,Supplies and Services,Consultants Fees,4401,RAISE PARTNERSHIP LIMITED,A0096986,07/12/2023,ECO0338169,2500,N,,N,N
Pendle Borough Council,Economic Growth,Supplies and Services,Consultants Fees,4401,RAISE PARTNERSHIP LIMITED,A0096986,07/12/2023,ECO0338166,19305,N,,N,N
Pendle Borough Council,Economic Growth,Capital Costs,Consultancy,CE45,RAISE PARTNERSHIP LIMITED,A0096986,07/12/2023,ECO0338168,3900,N,,N,N
Pendle Borough Council,Finance,Supplies and Services,Grant Funding,4737,REDACT - PERSONAL DATA,A0097003,20/12/2023,FIN0338458,125,N,,N,N
Pendle Borough Council,Finance,Supplies and Services,Grant Funding,4737,REDACT - PERSONAL DATA,A0097003,20/12/2023,FIN0338458,350,N,,N,N
Pendle Borough Council,Operational Services,Transport Related Expense,Tprt : Repairs : General,3105,SIXIS Technology Ltd,A0097018,07/12/2023,OPS0338073,458.8,N,,N,N
Pendle Borough Council,Operational Services,Transport Related Expense,Tprt : Annual Hire Charge,3601,CAR HIRE DAY OF SWANSEA LTD,A0097023,14/12/2023,OPS4006775,-98.36,N,,N,N
Pendle Borough Council,Operational Services,Transport Related Expense,Tprt : Annual Hire Charge,3601,CAR HIRE DAY OF SWANSEA LTD,A0097023,14/12/2023,OPS0338278,762.29,N,,N,N
Pendle Borough Council,Policy & Commissioning,Supplies and Services,Publicity & advertisement,4704,ANDY FORD PHOTOGRAPHER,A0097160,20/12/2023,POL0338441,45,N,,N,N
Pendle Borough Council,Economic Growth,Supplies and Services,Consultants Fees,4401,DCR SURVEYING AND ESTIMATING SERVICES LTD,A0097173,07/12/2023,ECO0338172,700,N,,N,N
Pendle Borough Council,Economic Growth,Supplies and Services,Consultants Fees,4401,DCR SURVEYING AND ESTIMATING SERVICES LTD,A0097173,07/12/2023,ECO0338173,1125,N,,N,N
Pendle Borough Council,Finance,Supplies and Services,Grant Funding,4737,REDACT - PERSONAL DATA,A0097338,20/12/2023,FIN0338459,125,N,,N,N
Pendle Borough Council,Finance,Supplies and Services,Grant Funding,4737,REDACT - PERSONAL DATA,A0097338,20/12/2023,FIN0338459,350,N,,N,N
Pendle Borough Council,Finance,Supplies and Services,Grant Funding,4737,REDACT - PERSONAL DATA,A0097339,20/12/2023,FIN0338460,125,N,,N,N
Pendle Borough Council,Finance,Supplies and Services,Grant Funding,4737,REDACT - PERSONAL DATA,A0097339,20/12/2023,FIN0338460,350,N,,N,N
Pendle Borough Council,Operational Services,Capital Costs,Capital : Purchase,cd01,STUART TAYLOR INTERNATIONAL LTD,A0097341,14/12/2023,OPS0338251,6885,N,,N,N
Pendle Borough Council,Operational Services,Premises Related Expense,Bldgs : R & M : Day To Day,2001,E L PARKER LTD,A0097404,07/12/2023,OPS0338089,270,N,,N,N
Pendle Borough Council,Housing & Environmental Health,Supplies and Services,Other Expenses,4705,LADY  BELL LTD,A0097412,07/12/2023,HEH0337916,999,N,,N,N
Pendle Borough Council,Finance,Supplies and Services,Grant Funding,4737,REDACT - PERSONAL DATA,A0097415,20/12/2023,FIN0338461,125,N,,N,N
Pendle Borough Council,Finance,Supplies and Services,Grant Funding,4737,REDACT - PERSONAL DATA,A0097415,20/12/2023,FIN0338461,500,N,,N,N
Pendle Borough Council,Finance,Capital Costs,Capital: Construction: Conversion/Refu,CD57,READSTONE CONSTRUCTION,A0097418,14/12/2023,FIN0338022,156957.14,N,,N,N
Pendle Borough Council,Finance,Supplies and Services,Grant Funding,4737,REDACT - PERSONAL DATA,A0097419,20/12/2023,FIN0338462,125,N,,N,N
Pendle Borough Council,Finance,Supplies and Services,Grant Funding,4737,REDACT - PERSONAL DATA,A0097419,20/12/2023,FIN0338462,350,N,,N,N
Pendle Borough Council,Finance,Supplies and Services,Grant Funding,4737,REDACT - PERSONAL DATA,A0097430,20/12/2023,FIN0338463,125,N,,N,N
Pendle Borough Council,Finance,Supplies and Services,Grant Funding,4737,REDACT - PERSONAL DATA,A0097430,20/12/2023,FIN0338463,350,N,,N,N
Pendle Borough Council,Housing & Environmental Health,Supplies and Services,Other Expenses,4705,SHP GROUP LIMITED,A0097438,07/12/2023,HEH0338107,953.32,N,,N,N
Pendle Borough Council,Housing & Environmental Health,Supplies and Services,Other Expenses,4705,SHP GROUP LIMITED,A0097438,14/12/2023,HEH0338258,780,N,,N,N
Pendle Borough Council,Operational Services,Supplies and Services,Sub-Contractors,4007,PETER`S LANDSCAPING & GARDEN SERVICE,A0097442,14/12/2023,OPS0338223,150,N,,N,N
Pendle Borough Council,Human Resources,Supplies and Services,Other Expenses,4705,AVC WISE LTD,A0097461,07/12/2023,PER0337996,161.91,N,,N,N
Pendle Borough Council,Policy & Commissioning,Supplies and Services,Grant Funding,4737,OLD FASHIONED CATERING,A0097465,20/12/2023,POL0338318,120,N,,N,N
Pendle Borough Council,Policy & Commissioning,Supplies and Services,Grant Funding,4737,OLD FASHIONED CATERING,A0097465,14/12/2023,POL0338227,187.5,N,,N,N
Pendle Borough Council,Policy & Commissioning,Supplies and Services,Grant Funding,4737,THE EVALUATOR SERVICE LTD T/A THE EVALUATOR,A0097491,20/12/2023,POL0338347,1540,N,,N,N
Pendle Borough Council,Legal & Democratic Services,,Fees Income : Non-VATable,9302,REDACT - PERSONAL DATA,A0097495,07/12/2023,LAD0338092,3017.5,N,,N,N
Pendle Borough Council,Housing & Environmental Health,Supplies and Services,Other Expenses,4705,UNCULTURED CREATIVES,A0097496,07/12/2023,HEH0337918,1800,N,,N,N
Pendle Borough Council,Operational Services,Supplies and Services,Other Expenses,4705,MOLES SEEDS UK LIMITED,A0097502,14/12/2023,OPS0338249,375.83,N,,N,N
Pendle Borough Council,Housing & Environmental Health,Supplies and Services,Other Expenses,4705,PARAGON SUPPORTED HOUSING CIC,A0097504,07/12/2023,HEH0337948,430.21,N,,N,N
Pendle Borough Council,Operational Services,Premises Related Expense,Grounds : R & M : Day to Day : Routine,2101,LANCASHIRE FIRST AID TRAINING LTD,A0097506,14/12/2023,OPS0338252,130,N,,N,N
Pendle Borough Council,Housing & Environmental Health,Supplies and Services,Other Expenses,4705,REDACT - PERSONAL DATA,A0097507,07/12/2023,HEH0338046,750,N,,N,N
Pendle Borough Council,Housing & Environmental Health,Supplies and Services,Other Expenses,4705,REDACT - PERSONAL DATA,A0097508,07/12/2023,HEH0338045,500,N,,N,N
Pendle Borough Council,Housing & Environmental Health,Supplies and Services,Other Expenses,4705,REDACT - PERSONAL DATA,A0097509,07/12/2023,HEH0338105,820,N,,N,N
Pendle Borough Council,Housing & Environmental Health,Supplies and Services,Other Expenses,4705,REDACT - PERSONAL DATA,A0097510,07/12/2023,HEH0338152,1996,N,,N,N
Pendle Borough Council,Policy & Commissioning,Supplies and Services,Grant Funding,4737,FEMALES FRIENDSHIP FORUM,A0097511,14/12/2023,POL0338232,150,N,,N,N
Pendle Borough Council,Operational Services,Transport Related Expense,Tprt : Repairs : General,3105,REDACT - PERSONAL DATA,A0097516,20/12/2023,OPS0338355,148,N,,N,N
Pendle Borough Council,Housing & Environmental Health,,Housing Impts/Cap Repairs,0104,SPENCER JORDAN PLUMBING AND HEATING,A0097517,14/12/2023,HEH0338276,1550,N,,N,N
Pendle Borough Council,Economic Growth,Capital Costs,Capital : Payments,CD14,ADPAK MACHINERY SYSTEMS LIMITED,A0097518,20/12/2023,ECO0338429,60000,N,,N,N
Pendle Borough Council,Operational Services,Premises Related Expense,Grounds : R & M : Day to Day : Routine,2101,REDACT - PERSONAL DATA,A0097519,20/12/2023,OPS0338354,20.83,N,,N,N
Pendle Borough Council,Housing & Environmental Health,Supplies and Services,Other Expenses,4705,REDACT - PERSONAL DATA,A0097521,20/12/2023,HEH0338388,1000,N,,N,N
Pendle Borough Council,Housing & Environmental Health,Supplies and Services,Other Expenses,4705,REDACT - PERSONAL DATA,A0097521,20/12/2023,HEH0338427,1000,N,,N,N
Pendle Borough Council,Finance,,Other Government Grants,9030,DEPARTMENT FOR ENERGY SECURITY AND NET ZERO,A0097522,20/12/2023,FIN0338396,23200,N,,N,N
Pendle Borough Council,Finance,,Other Government Grants,9030,DEPARTMENT FOR ENERGY SECURITY AND NET ZERO,A0097522,20/12/2023,FIN0338395,202080,N,,N,N
Pendle Borough Council,Housing & Environmental Health,Supplies and Services,Other Expenses,4705,DILIGENT LETTINGS LTD,A0097523,20/12/2023,HEH0338406,425,N,,N,N
